{"text_format":"1","workbook":"xlsx","n_sheets":8,"sheets":["Wniosek","pełnomocnictwo","Formularz_samokontroli","Roczny_plan_produkcji_zw","Roczny_plan_produkcji _ros","Plan_kontroli_zdrowia_bydła","Plan_żywienia","Zlecenie_certyfikacji"],"not_rendered":{"charts":0,"images":13,"macros":1,"external_links":0,"defined_names":13,"comments":0,"pivot_tables":0},"unopened":[],"bounds":{"document_bytes":16777216,"sheet_cells":100000,"rows_first":2000,"rows_last":500,"rows_between":2000,"halvings":0,"cell_chars":16384,"cell_head_chars":4096},"cells_cut":0,"cells_raw":0,"read":"whole","date_system":"1900"}

{"sheet":"Wniosek","index":0,"n_rows":339,"n_cols":69,"rows_kept":339,"cut":false,"hidden":false,"merged":[[5,23,14,53],[325,19,325,31],[141,37,141,63],[142,37,142,63],[325,6,325,17],[17,39,29,63],[36,3,37,63],[38,62,40,63],[325,35,325,60],[53,3,55,63],[57,3,62,19],[57,20,62,36],[57,37,62,53],[57,54,62,63],[38,31,40,32],[38,3,40,30],[41,3,43,63],[44,3,52,63],[63,3,63,19],[56,54,56,63],[63,54,63,58],[56,3,56,19],[56,20,56,36],[56,37,56,53],[63,37,63,53],[63,20,63,36],[74,3,79,19],[74,20,79,36],[74,37,79,53],[74,54,79,63],[63,59,63,63],[70,3,72,63],[73,3,73,19],[73,20,73,36],[73,37,73,53],[73,54,73,63],[64,54,69,58],[64,59,69,63],[64,3,69,19],[64,20,69,36],[64,37,69,53],[80,3,80,19],[80,20,80,36],[80,37,80,53],[80,54,80,58],[80,59,80,63],[90,3,90,19],[90,20,90,36],[90,37,90,53],[90,54,90,63],[91,3,96,19],[91,20,96,36],[91,37,96,53],[91,54,96,63],[81,3,86,19],[81,20,86,36],[81,37,86,53],[81,54,86,58],[81,59,86,63],[87,3,89,63],[109,52,112,54],[105,49,108,51],[105,52,108,54],[105,55,108,57],[105,58,108,60],[105,61,108,63],[105,37,108,39],[105,40,108,42],[105,43,108,45],[105,46,108,48],[97,20,97,36],[97,37,97,53],[97,54,97,58],[97,59,97,63],[98,3,103,19],[98,20,103,36],[98,37,103,53],[98,54,103,58],[98,59,103,63],[150,3,153,4],[162,3,165,4],[162,5,165,57],[150,5,153,57],[138,3,140,36],[138,37,140,63],[141,3,142,36],[120,39,121,63],[113,52,116,54],[113,55,116,57],[113,58,116,60],[113,61,116,63],[113,34,116,36],[113,37,116,39],[113,40,116,42],[113,43,116,45],[113,46,116,48],[113,49,116,51],[174,14,177,57],[150,59,153,62],[154,59,157,62],[158,59,161,62],[162,59,165,62],[166,59,169,62],[170,59,173,62],[174,59,177,62],[210,54,212,57],[210,59,212,62],[0,33,2,64],[0,2,2,32],[338,3,339,38],[338,39,339,63],[225,39,226,63],[223,3,224,38],[118,3,119,38],[118,39,119,63],[336,3,337,38],[336,39,337,63],[326,6,326,31],[326,32,326,34],[326,35,326,60],[326,61,326,63],[327,32,328,34],[327,35,330,60],[327,6,330,31],[239,3,247,63],[223,39,224,63],[179,3,206,63],[208,3,218,52],[208,54,209,57],[208,59,209,62],[174,5,177,13],[248,3,324,63],[325,3,325,5],[174,3,177,4],[225,3,226,38],[113,3,116,33],[105,3,108,36],[229,3,238,12],[229,13,238,22],[229,23,238,53],[229,54,238,63],[170,3,173,4],[170,5,173,57],[147,3,149,4],[147,5,149,63],[166,3,169,4],[166,5,169,57],[154,3,157,4],[154,5,157,57],[158,3,161,4],[158,5,161,57],[143,3,143,36],[143,37,143,63],[144,3,144,36],[144,37,144,63],[5,13,14,22],[5,3,14,12],[5,54,14,63],[124,3,133,12],[124,13,133,22],[124,23,133,53],[124,54,133,63],[146,3,146,63],[38,33,40,61],[120,3,121,38],[145,3,145,36],[145,37,145,63],[109,55,112,57],[109,58,112,60],[109,61,112,63],[109,37,112,39],[109,40,112,42],[109,43,112,45],[109,46,112,48],[109,49,112,51],[109,3,112,30],[109,31,112,33],[109,34,112,36],[97,3,97,19]]}
[null,null,"Podpisany komplet dokumentów wraz z załącznikami w oryginale należy przesłać na adres:\nTÜV Rheinland Polska Sp. z o.o.  \nul. Wielicka 250; 30-663 Kraków",null,null,null,null,null,null,null,null,null,null,null,null,null,null,null,null,null,null,null,null,null,null,null,null,null,null,null,null,null,null,"W celu przyspieszenia procesu rejestracji komplet podpisanych dokumentów można przesłać również w formie skanu na adres e-mail: qmp@tuv.com. Uwaga: Warunkiem koniecznym do wydania certyfikatu jest dostarczenie oryginałów wszystkich dokumentów przed jego wystawieniem."]
[]
[]
[]
[]
[null,null,null,{"$error":"#VALUE!"},null,null,null,null,null,null,null,null,null,{"$error":"#VALUE!"},null,null,null,null,null,null,null,null,null,"Wniosek o certyfikację na zgodność z wymaganiami Systemu QMP – Standard QMP Bydło",null,null,null,null,null,null,null,null,null,null,null,null,null,null,null,null,null,null,null,null,null,null,null,null,null,null,null,null,null,null,{"$error":"#VALUE!"}]
[]
[]
[]
[]
[]
[]
[]
[]
[]
[]
[]
[null,null,null,null,null,null,null,null,null,null,null,null,null,null,null,null,null,null,null,null,null,null,null,null,null,null,null,null,null,null,null,null,null,null,null,null,null,null,null,"Pieczątka wpływowa"]
[]
[]
[]
[]
[]
[]
[]
[]
[]
[]
[]
[]
[]
[]
[]
[]
[]
[]
[null,null,null,"Dane wnioskodawcy / gospodarstwa"]
[]
[null,null,null,"Wniosek składany po raz pierwszy",null,null,null,null,null,null,null,null,null,null,null,null,null,null,null,null,null,null,null,null,null,null,null,null,null,null,null,null,null,"Wniosek składany w celu zmiany danych"]
[]
[]
[null,null,null,"Nazwa producenta / gospodarstwa"]
[]
[]
[]
[]
[]
[]
[]
[]
[]
[]
[]
[null,null,null,"Adres producenta / gospodarstwa"]
[]
[]
[null,null,null,"Województwo",null,null,null,null,null,null,null,null,null,null,null,null,null,null,null,null,"Powiat",null,null,null,null,null,null,null,null,null,null,null,null,null,null,null,null,"Gmina",null,null,null,null,null,null,null,null,null,null,null,null,null,null,null,null,"Kod pocztowy"]
[]
[]
[]
[]
[]
[]
[null,null,null,"Poczta",null,null,null,null,null,null,null,null,null,null,null,null,null,null,null,null,"Miejscowość",null,null,null,null,null,null,null,null,null,null,null,null,null,null,null,null,"Ulica",null,null,null,null,null,null,null,null,null,null,null,null,null,null,null,null,"Nr domu",null,null,null,null,"Nr mieszkania"]
[]
[]
[]
[]
[]
[]
[null,null,null,"Adres do korespondencji (wypełnić jeśli jest inny niż adres producenta/gospodarstwa)"]
[]
[]
[null,null,null,"Województwo",null,null,null,null,null,null,null,null,null,null,null,null,null,null,null,null,"Powiat",null,null,null,null,null,null,null,null,null,null,null,null,null,null,null,null,"Gmina",null,null,null,null,null,null,null,null,null,null,null,null,null,null,null,null,"Kod pocztowy"]
[]
[]
[]
[]
[]
[]
[null,null,null,"Poczta",null,null,null,null,null,null,null,null,null,null,null,null,null,null,null,null,"Miejscowość",null,null,null,null,null,null,null,null,null,null,null,null,null,null,null,null,"Ulica",null,null,null,null,null,null,null,null,null,null,null,null,null,null,null,null,"Nr domu",null,null,null,null,"Nr mieszkania"]
[]
[]
[]
[]
[]
[]
[null,null,null,"Adres lokalizacji zgłaszanych do certyfikacji, w których przebywa bydło (adres stada, wypełnić jeśli jest inny niż adres producenta/gospodarstwa)"]
[]
[]
[null,null,null,"Województwo",null,null,null,null,null,null,null,null,null,null,null,null,null,null,null,null,"Powiat",null,null,null,null,null,null,null,null,null,null,null,null,null,null,null,null,"Gmina",null,null,null,null,null,null,null,null,null,null,null,null,null,null,null,null,"Kod pocztowy"]
[]
[]
[]
[]
[]
[]
[null,null,null,"Poczta",null,null,null,null,null,null,null,null,null,null,null,null,null,null,null,null,"Miejscowość",null,null,null,null,null,null,null,null,null,null,null,null,null,null,null,null,"Ulica",null,null,null,null,null,null,null,null,null,null,null,null,null,null,null,null,"Nr domu",null,null,null,null,"Nr mieszkania"]
[]
[]
[]
[]
[]
[]
[]
[null,null,null,"Nr producenta nadany przez ARiMR"]
[]
[]
[]
[null,null,null,"Numer PESEL/KRS \n(PESEL - wymagany dla osób fizycznych/KRS – wymagany dla osób prawnych)"]
[]
[]
[]
[null,null,null,"Numer NIP (wymagany dla płatników VAT lub zapis „RR” jeśli rolnik jest rolnikiem ryczałtowym)"]
[]
[]
[]
[]
[null,null,null,"Polskie Zrzeszenie Producentów Bydła Mięsnego, ul. Smulikowskiego 4/217, 00-389 Warszawa",null,null,null,null,null,null,null,null,null,null,null,null,null,null,null,null,null,null,null,null,null,null,null,null,null,null,null,null,null,null,null,null,null,null,null,"wyd. 1 z 20.03.2025 r."]
[]
[null,null,null,"www.qmpsystem.eu, QMP@pzpbm.pl , tel. +48 666337299",null,null,null,null,null,null,null,null,null,null,null,null,null,null,null,null,null,null,null,null,null,null,null,null,null,null,null,null,null,null,null,null,null,null,null,"Strona 1 z 3"]
[]
[]
[]
[null,null,null,{"$error":"#VALUE!"},null,null,null,null,null,null,null,null,null,{"$error":"#VALUE!"},null,null,null,null,null,null,null,null,null,"Wniosek o certyfikację na zgodność z wymaganiami Systemu QMP – Standard QMP Bydło",null,null,null,null,null,null,null,null,null,null,null,null,null,null,null,null,null,null,null,null,null,null,null,null,null,null,null,null,null,null,{"$error":"#VALUE!"}]
[]
[]
[]
[]
[]
[]
[]
[]
[]
[]
[]
[]
[]
[null,null,null,"Osoba do kontaktu (imię i nazwisko)",null,null,null,null,null,null,null,null,null,null,null,null,null,null,null,null,null,null,null,null,null,null,null,null,null,null,null,null,null,null,null,null,null,"Telefon, e-mail"]
[]
[]
[]
[]
[null,null,null,"Liczba sztuk bydła w gospodarstwie zgłaszana do certyfikacji",null,null,null,null,null,null,null,null,null,null,null,null,null,null,null,null,null,null,null,null,null,null,null,null,null,null,null,null,null,null,null,null,null,null,null,null,null,null,null,null,null,null,null,null,null,null,null,null,null,null,null,null,null,null,null,null,null,null,null,null,null,null,null,null,{"$f":"SUM(Roczny_plan_produkcji_zw!AG65:AK79)","v":0}]
[null,null,null,"Całkowita powierzchnia gospodarstwa w hektarach"]
[null,null,null,"Całkowita powierzchnia użytków rolnych (własnych i dzierżawionych) w hektarach",null,null,null,null,null,null,null,null,null,null,null,null,null,null,null,null,null,null,null,null,null,null,null,null,null,null,null,null,null,null,null,null,null,null,null,null,null,null,null,null,null,null,null,null,null,null,null,null,null,null,null,null,null,null,null,null,null,null,null,null,null,null,null,null,{"$f":"'Roczny_plan_produkcji _ros'!G62","v":0}]
[]
[null,null,null,"Lp.",null,"Wykaz wymaganych załączników do wniosku – Standard QMP bydło"]
[null,null,null,null,null,null,null,null,null,null,null,null,null,null,null,null,null,null,null,null,null,null,null,null,null,null,null,null,null,null,null,null,null,null,null,null,null,null,null,null,null,null,null,null,null,null,null,null,null,null,null,null,null,null,null,null,null,null,null,null,null,null,null,null,null,null,null,null,false]
[]
[null,null,null,"1.",null,"Formularz samokontroli – analiza spełnienia wymagań (dotyczy zgłoszenia po raz pierwszy)",null,null,null,null,null,null,null,null,null,null,null,null,null,null,null,null,null,null,null,null,null,null,null,null,null,null,null,null,null,null,null,null,null,null,null,null,null,null,null,null,null,null,null,null,null,null,null,null,null,null,null,null,null,"x"]
[]
[]
[null,null,null,null,null,null,null,null,null,null,null,null,null,null,null,null,null,null,null,null,null,null,null,null,null,null,null,null,null,null,null,null,null,null,null,null,null,null,null,null,null,null,null,null,null,null,null,null,null,null,null,null,null,null,null,null,null,null,null,null,null,null,null,null,null,null,null,null,false]
[null,null,null,"2.",null,"Roczny plan produkcji (lub plik CSV z numerami identyfikacyjnymi zwierząt zgłaszanych do certyfikacji, pobrany z systemu IRZplus) (dotyczy zgłoszenia po raz pierwszy)",null,null,null,null,null,null,null,null,null,null,null,null,null,null,null,null,null,null,null,null,null,null,null,null,null,null,null,null,null,null,null,null,null,null,null,null,null,null,null,null,null,null,null,null,null,null,null,null,null,null,null,null,null,"x"]
[]
[]
[null,null,null,null,null,null,null,null,null,null,null,null,null,null,null,null,null,null,null,null,null,null,null,null,null,null,null,null,null,null,null,null,null,null,null,null,null,null,null,null,null,null,null,null,null,null,null,null,null,null,null,null,null,null,null,null,null,null,null,null,null,null,null,null,null,null,null,null,false]
[null,null,null,"3.",null,"Kopia protokołu z ostatniej kontroli (jeśli dotyczy)",null,null,null,null,null,null,null,null,null,null,null,null,null,null,null,null,null,null,null,null,null,null,null,null,null,null,null,null,null,null,null,null,null,null,null,null,null,null,null,null,null,null,null,null,null,null,null,null,null,null,null,null,null,"x"]
[]
[null,null,null,null,null,null,null,null,null,null,null,null,null,null,null,null,null,null,null,null,null,null,null,null,null,null,null,null,null,null,null,null,null,null,null,null,null,null,null,null,null,null,null,null,null,null,null,null,null,null,null,null,null,null,null,null,null,null,null,null,null,null,null,null,null,null,null,null,{"$f":"COUNTIF(Roczny_plan_produkcji_zw!BQ65:BQ79,TRUE)","v":0}]
[null,null,null,null,null,null,null,null,null,null,null,null,null,null,null,null,null,null,null,null,null,null,null,null,null,null,null,null,null,null,null,null,null,null,null,null,null,null,null,null,null,null,null,null,null,null,null,null,null,null,null,null,null,null,null,null,null,null,null,null,null,null,null,null,null,null,null,null,false]
[null,null,null,"4.",null,"Plan kontroli zdrowia bydła",null,null,null,null,null,null,null,null,null,null,null,null,null,null,null,null,null,null,null,null,null,null,null,null,null,null,null,null,null,null,null,null,null,null,null,null,null,null,null,null,null,null,null,null,null,null,null,null,null,null,null,null,null,"x"]
[]
[]
[null,null,null,null,null,null,null,null,null,null,null,null,null,null,null,null,null,null,null,null,null,null,null,null,null,null,null,null,null,null,null,null,null,null,null,null,null,null,null,null,null,null,null,null,null,null,null,null,null,null,null,null,null,null,null,null,null,null,null,null,null,null,null,null,null,null,null,null,false]
[null,null,null,"5.",null,"Plan żywienia – QMP Bydło",null,null,null,null,null,null,null,null,null,null,null,null,null,null,null,null,null,null,null,null,null,null,null,null,null,null,null,null,null,null,null,null,null,null,null,null,null,null,null,null,null,null,null,null,null,null,null,null,null,null,null,null,null,"x"]
[]
[]
[null,null,null,null,null,null,null,null,null,null,null,null,null,null,null,null,null,null,null,null,null,null,null,null,null,null,null,null,null,null,null,null,null,null,null,null,null,null,null,null,null,null,null,null,null,null,null,null,null,null,null,null,null,null,null,null,null,null,null,null,null,null,null,null,null,null,null,null,false]
[null,null,null,"6.",null,"Pełnomocnictwo ogólne QMP (jeśli dotyczy)",null,null,null,null,null,null,null,null,null,null,null,null,null,null,null,null,null,null,null,null,null,null,null,null,null,null,null,null,null,null,null,null,null,null,null,null,null,null,null,null,null,null,null,null,null,null,null,null,null,null,null,null,null,"x"]
[]
[null,null,null,null,null,null,null,null,null,null,null,null,null,null,null,null,null,null,null,null,null,null,null,null,null,null,null,null,null,null,null,null,null,null,null,null,null,null,null,null,null,null,null,null,null,null,null,null,null,null,null,null,null,null,null,null,null,null,null,null,null,null,null,null,null,null,null,null,{"$f":"IF(pełnomocnictwo!D33<>\"\",TRUE,FALSE)","v":false}]
[null,null,null,null,null,null,null,null,null,null,null,null,null,null,null,null,null,null,null,null,null,null,null,null,null,null,null,null,null,null,null,null,null,null,null,null,null,null,null,null,null,null,null,null,null,null,null,null,null,null,null,null,null,null,null,null,null,null,null,null,null,null,null,null,null,null,null,null,false]
[null,null,null,"7.",null,"Inne załączniki:",null,null,null,null,null,null,null,null,null,null,null,null,null,null,null,null,null,null,null,null,null,null,null,null,null,null,null,null,null,null,null,null,null,null,null,null,null,null,null,null,null,null,null,null,null,null,null,null,null,null,null,null,null,"x"]
[]
[]
[null,null,null,null,null,null,null,null,null,null,null,null,null,null,null,null,null,null,null,null,null,null,null,null,null,null,null,null,null,null,null,null,null,null,null,null,null,null,null,null,null,null,null,null,null,null,null,null,null,null,null,null,null,null,null,null,null,null,null,null,null,null,null,null,null,null,null,null,false]
[]
[null,null,null,"Potwierdzam, że wszystkie informacje podane we \"Wniosku o certyfikację na zgodność z wymaganiami Systemu QMP – Bydło\" i wskazanych załącznikach są zgodne ze stanem faktycznym i moją wiedzą. Jednocześnie zobowiązuje się do aktualizacji tych dokumentów niezwłocznie w sytuacji, gdy nastąpi zmiana zamieszczonych w nich informacji.”\nZobowiązuję się do wniesienia opłaty zgodnie z obowiązującym na dzień składania wniosku o certyfikację cennikiem dotyczącym Systemu QMP, zamieszczonym na stronie internetowej Jednostki certyfikującej.\nJednocześnie potwierdzam, że w przypadku braku wniesienia opłaty Jednostka może jednostronnie wypowiedzieć zawartą między nami Umowę o certyfikację w systemie QMP.\nZobowiązuję się do udostępniania w toku kontroli zapowiedzianych jak i niezapowiedzianych prowadzonych w moim gospodarstwie, wszystkich części gospodarstwa oraz prowadzonej dokumentacji dotyczącej produkcji, zakupów i sprzedaży.\nWyrażam zgodę na przeprowadzenie kontroli zapowiedzianych jak i niezapowiedzianych oraz pobór próbek do badań w mojej jednostce produkcyjnej na zgodność prowadzonej produkcji zgodnie z Programem Certyfikacji w Systemie QMP przez wybraną Jednostkę certyfikującą. Jednostka jest odpowiedzialna za zachowanie poufności przez osoby działające w jego imieniu odnośnie informacji, z jakimi zapoznały się w związku z realizacją procesu certyfikacji. Wyrażam zgodę na wykonywanie badań laboratoryjnych przez podwykonawców Jednostki."]
[]
[]
[]
[]
[]
[]
[]
[]
[]
[]
[]
[]
[]
[]
[]
[]
[]
[]
[]
[]
[]
[]
[]
[]
[]
[]
[]
[]
[null,null,null,"Wyrażam zgodę na przekazywanie mi przez wybraną Jednostkę certyfikującą drogą elektroniczną, na adres e-mail i numer telefonu podany we Wniosku, korespondencji dotyczących procesu certyfikacji, a w szczególności: decyzji pokontrolnych QMP, faktur, certyfikatów, wszelkich pism związanych z realizacją tego procesu. Jednocześnie oświadczam, że zostałem/łam poinformowany/na, iż korespondencja przekazywana drogą elektroniczną, będzie uznana ze skutkiem doręczenia, na co wyrażam zgodę.",null,null,null,null,null,null,null,null,null,null,null,null,null,null,null,null,null,null,null,null,null,null,null,null,null,null,null,null,null,null,null,null,null,null,null,null,null,null,null,null,null,null,null,null,null,null,null,null,null,null,"Tak",null,null,null,null,"Nie"]
[null,null,null,null,null,null,null,null,null,null,null,null,null,null,null,null,null,null,null,null,null,null,null,null,null,null,null,null,null,null,null,null,null,null,null,null,null,null,null,null,null,null,null,null,null,null,null,null,null,null,null,null,null,null,null,null,null,null,null,null,null,null,null,null,null,null,null,null,false]
[null,null,null,null,null,null,null,null,null,null,null,null,null,null,null,null,null,null,null,null,null,null,null,null,null,null,null,null,null,null,null,null,null,null,null,null,null,null,null,null,null,null,null,null,null,null,null,null,null,null,null,null,null,null,null,null,null,null,null,null,null,null,null,null,null,null,null,null,false]
[]
[]
[]
[]
[]
[]
[]
[]
[]
[]
[]
[]
[null,null,null,"Polskie Zrzeszenie Producentów Bydła Mięsnego, ul. Smulikowskiego 4/217, 00-389 Warszawa",null,null,null,null,null,null,null,null,null,null,null,null,null,null,null,null,null,null,null,null,null,null,null,null,null,null,null,null,null,null,null,null,null,null,null,"wyd. 1 z 20.03.2025 r."]
[]
[null,null,null,"www.qmpsystem.eu, QMP@pzpbm.pl , tel. +48 666337299",null,null,null,null,null,null,null,null,null,null,null,null,null,null,null,null,null,null,null,null,null,null,null,null,null,null,null,null,null,null,null,null,null,null,null,"Strona 2 z 3"]
[]
[]
[]
[null,null,null,{"$error":"#VALUE!"},null,null,null,null,null,null,null,null,null,{"$error":"#VALUE!"},null,null,null,null,null,null,null,null,null,"Wniosek o certyfikację na zgodność z wymaganiami Systemu QMP – Standard QMP Bydło",null,null,null,null,null,null,null,null,null,null,null,null,null,null,null,null,null,null,null,null,null,null,null,null,null,null,null,null,null,null,{"$error":"#VALUE!"}]
[]
[]
[]
[]
[]
[]
[]
[]
[]
[null,null,null,"DEKLARACJA\nprzystąpienia do systemu Quality Meat Program (QMP)\nhttps://qmpsystem.eu/"]
[]
[]
[]
[]
[]
[]
[]
[]
[null,null,null,"Deklaruję przystąpienie do systemu Quality Meat Program (QMP: https://qmpsystem.eu/) i zobowiązuję się wobec administratora systemu QMP tj. Polskiego Zrzeszenia Producentów Bydła Mięsnego (NIP: 9521967784, dalej: „Zrzeszenie”), że dokonam płatności na rzecz Zrzeszenia opłaty (składki) za uczestnictwo w systemie QMP w wysokości 9,50 zł + VAT od każdej sztuki bydła ujętej na certyfikacie QMP, w terminie i w sposób, które zostaną wskazane na fakturze wystawionej przez Zrzeszenie. W przypadku opóźnienia w płatności zobowiązuje się do zapłaty odsetek ustawowych za czas opóźnienia, bez względu na przyczynę opóźnienia.\nWyrażam zgodę na przesyłanie faktur w postaci elektronicznej.\nOświadczam ponadto, że zostałem poinformowany o przetwarzaniu danych osobowych przez Zrzeszenie:\n- Administratorem moich danych osobowych jest Polskie Zrzeszenie Producentów Bydła Mięsnego z siedzibą w Warszawie przy ul. Smulikowskiego 4/217, 00-389 Warszawa, zwane dalej także „Administratorem”.\n- Kontakt z Administratorem możliwy jest poprzez e-mail biuro@pzpbm.pl lub osobiście w siedzibie Administratora.\n- Moje dane osobowe przetwarzane będą w celu obsługi uczestnictwa w systemie QMP, w szczególności: wykonywania zobowiązań ciążących na podmiotach systemu, weryfikowania spełniania wymagań uczestnictwa w systemie, ewidencji i sprawozdawczości systemu. Dane osobowe będą przetwarzane także w celu wykonywania obowiązków nałożonych na Zrzeszenie przez przepisy powszechnie obowiązującego prawa oraz przechowywania danych w celach dokumentacyjnych, co stanowi prawnie uzasadniony interes Zrzeszenia, w związku z koniecznością wykazania prawidłowości realizowania usług\ni funkcjonowania systemu QMP.\n- Podstawą prawną do przetwarzania danych jest art. 6 ust. 1 lit. b), c) i f) Rozporządzenia Parlamentu Europejskiego i Rady (UE) 2016/679 z 27.04.2016 r. w sprawie ochrony osób fizycznych w związku z przetwarzaniem danych osobowych i w sprawie swobodnego przepływu takich danych oraz uchylenia dyrektywy 95/46/WE (ogólne rozporządzenie o ochronie danych) (Dz.Urz. UE L 119, s. 1).\n- Odbiorcami moich danych osobowych będą podmioty uprawnione do uzyskania danych osobowych na podstawie przepisów prawa oraz osoby świadczące na rzecz Zrzeszenia usługi związane z celami przetwarzania danych, jak usługi kurierskie, usługi księgowe, doradztwo podatkowe, pomoc prawna, usługi informatyczne, itp. Odbiorcami danych mogą być również inne podmioty systemu QMP: dostawcy paszy, doradcy, jednostki certyfikujące i ubojnie.\n- Moje dane osobowe przechowywane będą przez okres 5 lat.\n- Mam prawo do żądania od Administratora dostępu do danych osobowych, ich sprostowania, usunięcia lub ograniczenia przetwarzania, wniesienia sprzeciwu wobec przetwarzania danych, przenoszenia danych oraz prawo do cofnięcia zgody,\n- Mam prawo wniesienia skargi do organu nadzorczego – Prezesa Urzędu Ochrony Danych Osobowych."]
[]
[]
[]
[]
[]
[]
[]
[]
[]
[]
[]
[]
[]
[]
[]
[]
[]
[]
[]
[]
[]
[]
[]
[]
[]
[]
[]
[]
[]
[]
[]
[]
[]
[]
[]
[]
[]
[]
[]
[]
[]
[]
[]
[]
[]
[]
[]
[]
[]
[]
[]
[]
[]
[]
[]
[]
[]
[]
[]
[]
[]
[]
[]
[]
[]
[]
[]
[]
[]
[]
[]
[]
[]
[null,null,null,null,null,null,null,null,null,null,null,null,null,null,null,null,null,null,null,null,null,null,null,null,null,null,null,null,null,null,null,null,null,null,null,null,null,null,null,null,null,null,null,null,null,null,null,null,null,null,null,null,null,null,null,null,null,null,null,null,null,null,null,null,null,null,null,null,{"$f":"TODAY()","v":"2025-06-24"}]
[]
[]
[null,null,null,null,null,null,null,null,null,null,null,null,null,null,null,null,null,null,","]
[null,null,null,null,null,null,"….....................................................................",null,null,null,null,null,null,null,null,null,null,null,null,null,null,null,null,null,null,null,null,null,null,null,null,null,null,null,null,"….....................................................................",null,null,null,null,null,null,null,null,null,null,null,null,null,null,null,null,null,null,null,null,null,null,null,null,null,null,null,null,null,null,null,null,{"$f":"D45","v":0}]
[null,null,null,null,null,null,"miejscowość, data",null,null,null,null,null,null,null,null,null,null,null,null,null,null,null,null,null,null,null,null,null,null,null,null,null,null,null,null,"Podpis imię i nazwisko wnioskującego \n(osoby upoważnionej/pełnomocnika)",null,null,null,null,null,null,null,null,null,null,null,null,null,null,null,null,null,null,null,null,null,null,null,null,null,null,null,null,null,null,null,null,{"$f":"D142","v":0}]
[null,null,null,null,null,null,null,null,null,null,null,null,null,null,null,null,null,null,null,null,null,null,null,null,null,null,null,null,null,null,null,null,null,null,null,null,null,null,null,null,null,null,null,null,null,null,null,null,null,null,null,null,null,null,null,null,null,null,null,null,null,null,null,null,null,null,null,null,{"$f":"IF(pełnomocnictwo!D33=\"\",\"\",pełnomocnictwo!D33)","v":""}]
[]
[]
[]
[]
[]
[]
[]
[null,null,null,"Polskie Zrzeszenie Producentów Bydła Mięsnego, ul. Smulikowskiego 4/217, 00-389 Warszawa",null,null,null,null,null,null,null,null,null,null,null,null,null,null,null,null,null,null,null,null,null,null,null,null,null,null,null,null,null,null,null,null,null,null,null,"wyd. 1 z 20.03.2025 r."]
[]
[null,null,null,"www.qmpsystem.eu, QMP@pzpbm.pl , tel. +48 666337299",null,null,null,null,null,null,null,null,null,null,null,null,null,null,null,null,null,null,null,null,null,null,null,null,null,null,null,null,null,null,null,null,null,null,null,"Strona 3 z 3"]

{"sheet":"pełnomocnictwo","index":1,"n_rows":99,"n_cols":35,"rows_kept":99,"cut":false,"hidden":false,"merged":[[20,3,21,31],[24,3,27,63],[50,3,52,32],[50,34,52,63],[32,3,34,63],[35,3,36,63],[38,3,40,63],[41,3,42,63],[44,3,46,63],[47,3,48,63],[96,5,96,30],[96,34,96,59],[56,3,60,63],[61,3,64,63],[65,5,71,62],[82,3,83,32],[82,33,83,63],[76,5,78,62],[80,3,81,63],[97,5,97,30],[97,31,97,33],[97,34,97,59],[98,5,101,30],[98,31,99,33],[98,34,101,59],[5,3,7,31],[8,3,9,31],[11,3,13,31],[14,3,15,31],[17,3,19,31],[53,34,54,63],[53,3,54,32],[72,5,75,62],[65,3,71,4],[72,3,75,4]]}
[]
[]
[]
[]
[]
[null,null,null,{"$f":"IF(Wniosek!$D$45=\"\",\"\",Wniosek!$D$45)","v":""}]
[]
[]
[null,null,null,"imię i nazwisko lub nazwa firmy"]
[]
[]
[null,null,null,{"$f":"CONCATENATE(\" \",\n  Wniosek!U65,\n  IF(Wniosek!AL65<>\"\",\" ul. \" & Wniosek!AL65,\"\"),\n  IF(Wniosek!BC65<>\"\",\" \"&Wniosek!BC65,\"\"),\n  IF(Wniosek!BH65<>\"\",\"/\" & Wniosek!BH65,\"\")\n)","v":" "}]
[]
[]
[null,null,null,"adres zameldowania"]
[]
[]
[null,null,null,{"$f":"CONCATENATE(Wniosek!BC58,\n  \" \",Wniosek!D65\n)","v":" "}]
[]
[]
[null,null,null,"adres zameldowania"]
[]
[]
[]
[null,null,null,"PEŁNOMOCNICTWO"]
[]
[]
[]
[]
[]
[]
[]
[]
[]
[]
[null,null,null,"(imię i nazwisko osoby upoważnionej do reprezentacji)"]
[]
[]
[]
[]
[]
[null,null,null,"(seria i numer dowodu osobistego)"]
[]
[]
[]
[]
[]
[null,null,null,"(adres zamieszkania)"]
[]
[]
[]
[]
[]
[null,null,null,"(telefon)",null,null,null,null,null,null,null,null,null,null,null,null,null,null,null,null,null,null,null,null,null,null,null,null,null,null,null,null,null,null,"(e-mail)"]
[]
[]
[null,null,null,"Udzielam pełnomocnictwa do reprezentowania mnie przed TÜV Rheinland Polska Sp. z o.o. w sprawach związanych z certyfikacją w Systemie Quality Meat Program (QMP)."]
[]
[]
[]
[]
[null,null,null,"Pełnomocnictwo obejmuje:"]
[]
[]
[]
[null,null,null,null,null,"Reprezentowanie mnie we wszystkich czynnościach związanych z procesem certyfikacji w Systemie QMP, w tym składanie wniosków, odbiór decyzji oraz prowadzenie korespondencji z jednostką certyfikującą."]
[]
[]
[]
[]
[]
[]
[null,null,null,null,null,"Podejmowanie innych działań niezbędnych do realizacji procesu certyfikacji w moim imieniu: jakich? "]
[false]
[]
[]
[]
[]
[]
[]
[null,null,null,"Pełnomocnictwo pozostaje w mocy do jego odwołania na piśmie, chyba że wskazano inny termin. "]
[]
[null,null,null,"Data wygaśnięcia pełnomocnictwa (jeśli dotyczy):"]
[]
[]
[]
[]
[]
[]
[]
[]
[]
[]
[]
[]
[]
[]
[null,null,null,null,null,"….....................................................................",null,null,null,null,null,null,null,null,null,null,null,null,null,null,null,null,null,null,null,null,null,null,null,null,null,null,null,null,"…....................................................................."]
[null,null,null,null,null,"miejscowość, data",null,null,null,null,null,null,null,null,null,null,null,null,null,null,null,null,null,null,null,null,null,null,null,null,null,null,null,null,"Czytelny podpis zlecającego"]

{"sheet":"Formularz_samokontroli","index":2,"n_rows":115,"n_cols":78,"rows_kept":115,"cut":false,"hidden":false,"merged":[[48,66,51,66],[44,3,47,36],[44,37,47,39],[56,39,61,42],[62,39,67,42],[44,40,47,42],[44,43,47,45],[44,46,47,48],[44,49,47,51],[48,3,51,54],[56,47,61,63],[53,3,55,4],[53,5,55,36],[48,55,51,63],[62,47,67,63],[53,47,55,63],[38,59,38,63],[44,52,47,54],[44,55,47,57],[44,58,47,60],[44,61,47,63],[29,3,31,63],[32,3,32,19],[32,20,32,36],[32,37,32,53],[32,54,32,63],[18,3,19,63],[39,3,43,19],[39,20,43,36],[39,37,43,53],[39,54,43,58],[39,59,43,63],[33,3,37,19],[33,20,37,36],[33,37,37,53],[33,54,37,63],[38,3,38,19],[38,20,38,36],[38,37,38,53],[38,54,38,58],[20,3,22,63],[23,3,28,63],[114,3,115,38],[114,39,115,63],[86,6,90,31],[86,35,90,60],[89,3,90,5],[91,6,91,31],[91,32,91,34],[91,35,91,60],[92,35,95,60],[98,3,106,63],[112,3,113,38],[112,39,113,63],[91,61,91,63],[92,6,95,31],[92,32,93,34],[53,39,55,42],[53,43,55,46],[80,3,85,4],[80,5,85,36],[80,47,85,63],[68,39,73,42],[74,39,79,42],[80,39,85,42],[56,43,61,46],[62,43,67,46],[68,43,73,46],[74,43,79,46],[80,43,85,46],[74,77,79,77],[80,76,85,76],[80,77,85,77],[48,67,51,75],[56,76,61,76],[56,77,61,77],[62,76,67,76],[62,77,67,77],[68,76,73,76],[68,77,73,77],[3,3,9,12],[3,13,9,22],[3,54,9,63],[3,23,9,53],[74,76,79,76],[74,3,79,4],[74,5,79,36],[74,47,79,63],[53,37,85,38],[68,3,73,4],[68,5,73,36],[68,47,73,63],[62,3,67,4],[62,5,67,36],[56,3,61,4],[56,5,61,36]]}
[]
[]
[]
[null,null,null,{"$error":"#VALUE!"},null,null,null,null,null,null,null,null,null,{"$error":"#VALUE!"},null,null,null,null,null,null,null,null,null,"Formularz samokontroli – QMP Bydło",null,null,null,null,null,null,null,null,null,null,null,null,null,null,null,null,null,null,null,null,null,null,null,null,null,null,null,null,null,null,{"$error":"#VALUE!"}]
[]
[]
[]
[]
[]
[]
[]
[]
[]
[]
[]
[]
[]
[]
[null,null,null,"Dane wnioskodawcy / gospodarstwa"]
[]
[null,null,null,"Nazwa producenta / gospodarstwa"]
[]
[]
[null,null,null,{"$f":"IF(Wniosek!$D$45=\"\",\"\",Wniosek!$D$45)","v":""}]
[]
[]
[]
[]
[]
[null,null,null,"Adres producenta / gospodarstwa"]
[]
[]
[null,null,null,"Województwo",null,null,null,null,null,null,null,null,null,null,null,null,null,null,null,null,"Powiat",null,null,null,null,null,null,null,null,null,null,null,null,null,null,null,null,"Gmina",null,null,null,null,null,null,null,null,null,null,null,null,null,null,null,null,"Kod pocztowy"]
[null,null,null,{"$f":"IF(Wniosek!$D$58=\"\",\"\",Wniosek!$D$58)","v":""},null,null,null,null,null,null,null,null,null,null,null,null,null,null,null,null,{"$f":"IF(Wniosek!$U$58=\"\",\"\",Wniosek!$U$58)","v":""},null,null,null,null,null,null,null,null,null,null,null,null,null,null,null,null,{"$f":"IF(Wniosek!$AL$58=\"\",\"\",Wniosek!$AL$58)","v":""},null,null,null,null,null,null,null,null,null,null,null,null,null,null,null,null,{"$f":"IF(Wniosek!$BC$58=\"\",\"\",Wniosek!$BC$58)","v":""}]
[]
[]
[]
[]
[null,null,null,"Poczta",null,null,null,null,null,null,null,null,null,null,null,null,null,null,null,null,"Miejscowość",null,null,null,null,null,null,null,null,null,null,null,null,null,null,null,null,"Ulica",null,null,null,null,null,null,null,null,null,null,null,null,null,null,null,null,"Nr domu",null,null,null,null,"Nr mieszkania"]
[null,null,null,{"$f":"IF(Wniosek!$D$65=\"\",\"\",Wniosek!$D$65)","v":""},null,null,null,null,null,null,null,null,null,null,null,null,null,null,null,null,{"$f":"IF(Wniosek!$U$65=\"\",\"\",Wniosek!$U$65)","v":""},null,null,null,null,null,null,null,null,null,null,null,null,null,null,null,null,{"$f":"IF(Wniosek!$AL$65=\"\",\"\",Wniosek!$AL$65)","v":""},null,null,null,null,null,null,null,null,null,null,null,null,null,null,null,null,{"$f":"IF(Wniosek!$BC$65=\"\",\"\",Wniosek!$BC$65)","v":""},null,null,null,null,{"$f":"IF(Wniosek!$BH$65=\"\",\"\",Wniosek!$BH$65)","v":""}]
[]
[]
[]
[]
[null,null,null,"Nr producenta nadany przez ARiMR",null,null,null,null,null,null,null,null,null,null,null,null,null,null,null,null,null,null,null,null,null,null,null,null,null,null,null,null,null,null,null,null,null,{"$f":"IF(Wniosek!$AL$106=\"\",\"\",Wniosek!$AL$106)","v":""},null,null,{"$f":"IF(Wniosek!$AO$106=\"\",\"\",Wniosek!$AO$106)","v":""},null,null,{"$f":"IF(Wniosek!$AR$106=\"\",\"\",Wniosek!$AR$106)","v":""},null,null,{"$f":"IF(Wniosek!$AU$106=\"\",\"\",Wniosek!$AU$106)","v":""},null,null,{"$f":"IF(Wniosek!$AX$106=\"\",\"\",Wniosek!$AX$106)","v":""},null,null,{"$f":"IF(Wniosek!$BA$106=\"\",\"\",Wniosek!$BA$106)","v":""},null,null,{"$f":"IF(Wniosek!$BD$106=\"\",\"\",Wniosek!$BD$106)","v":""},null,null,{"$f":"IF(Wniosek!$BG$106=\"\",\"\",Wniosek!$BG$106)","v":""},null,null,{"$f":"IF(Wniosek!$BJ$106=\"\",\"\",Wniosek!$BJ$106)","v":""}]
[]
[]
[]
[null,null,null,"Liczba bydła utrzymywanego bez uwięzi (zgłaszanych do certyfikacji)",null,null,null,null,null,null,null,null,null,null,null,null,null,null,null,null,null,null,null,null,null,null,null,null,null,null,null,null,null,null,null,null,null,null,null,null,null,null,null,null,null,null,null,null,null,null,null,null,null,null,null,{"$f":"IF(Wniosek!AL144=\"\",\"\",Wniosek!AL144)","v":""},null,null,null,null,null,null,null,null,null,null,null,{"$f":"SUM(Roczny_plan_produkcji_zw!BP65:BP79)","v":0}]
[]
[]
[]
[]
[null,null,null,"Lp.",null,"Opis wymagań",null,null,null,null,null,null,null,null,null,null,null,null,null,null,null,null,null,null,null,null,null,null,null,null,null,null,null,null,null,null,null,"Zgodność",null,"Tak",null,null,null,"Nie",null,null,null,"Uwagi"]
[]
[]
[null,null,null,"1.",null,"Spełniam podstawowe wymogi w zakresie utrzymywania i identyfikacji zwierząt wynikające z odrębnych przepisów – PS WPR",null,null,null,null,null,null,null,null,null,null,null,null,null,null,null,null,null,null,null,null,null,null,null,null,null,null,null,null,null,null,null,null,null,null,null,null,null,null,null,null,null,null,null,null,null,null,null,null,null,null,null,null,null,null,null,null,null,null,null,null,null,null,null,null,null,null,null,null,null,null,false,false]
[]
[]
[]
[]
[]
[null,null,null,"2.",null,"Mam bydło mleczne użytkowane w kierunku opasowym (np.: buhajki HO), krzyżówki z rasami mięsnymi (MM), krzyżówki bez ras mięsnych (MS) albo inne z poniższej listy albo krowy mamki*",null,null,null,null,null,null,null,null,null,null,null,null,null,null,null,null,null,null,null,null,null,null,null,null,null,null,null,null,null,null,null,null,null,null,null,null,null,null,null,null,null,null,null,null,null,null,null,null,null,null,null,null,null,null,null,null,null,null,null,null,null,null,null,null,null,null,null,null,null,null,false,false]
[]
[]
[]
[]
[]
[null,null,null,"3.",null,"Żywię zwierzęta właściwie do ich potrzeb bytowych i produkcyjnych oraz posiadam napisany lub spiszę plan żywienia zwierząt",null,null,null,null,null,null,null,null,null,null,null,null,null,null,null,null,null,null,null,null,null,null,null,null,null,null,null,null,null,null,null,null,null,null,null,null,null,null,null,null,null,null,null,null,null,null,null,null,null,null,null,null,null,null,null,null,null,null,null,null,null,null,null,null,null,null,null,null,null,null,false,false]
[]
[]
[]
[]
[]
[null,null,null,"4.",null,"Stosuję profilaktykę zdrowia zwierząt oraz zapewniam konieczną opiekę weterynaryjną – posiadam napisany plan lub spiszę plan kontroli zdrowia bydła uzgodniony z lekarzem weterynarii",null,null,null,null,null,null,null,null,null,null,null,null,null,null,null,null,null,null,null,null,null,null,null,null,null,null,null,null,null,null,null,null,null,null,null,null,null,null,null,null,null,null,null,null,null,null,null,null,null,null,null,null,null,null,null,null,null,null,null,null,null,null,null,null,null,null,null,null,null,null,false,false]
[]
[]
[]
[]
[]
[null,null,null,"5.",null,"Mam / planuję zwiększenie powierzchni o minimum 20% i/lub zapewniam zwierzętom wybiegi/pastwiska (wystarczy spełnienie jednego wymagania)",null,null,null,null,null,null,null,null,null,null,null,null,null,null,null,null,null,null,null,null,null,null,null,null,null,null,null,null,null,null,null,null,null,null,null,null,null,null,null,null,null,null,null,null,null,null,null,null,null,null,null,null,null,null,null,null,null,null,null,null,null,null,null,null,null,null,null,null,null,null,false,false]
[]
[]
[]
[]
[]
[null,null,null,null,null,null,{"$f":"IF(Wniosek!$T$326=\"\",\"\",CONCATENATE(Wniosek!$G$326,\" \",TEXT(Wniosek!$T$326,\"dd.mm.rrrr\")))","v":""},null,null,null,null,null,null,null,null,null,null,null,null,null,null,null,null,null,null,null,null,null,null,null,null,null,null,null,null,{"$f":"IF(Wniosek!$AJ$326=\"\",\"\",Wniosek!$AJ$326)","v":""}]
[]
[]
[]
[]
[null,null,null,null,null,null,"….....................................................................",null,null,null,null,null,null,null,null,null,null,null,null,null,null,null,null,null,null,null,null,null,null,null,null,null,null,null,null,"…....................................................................."]
[null,null,null,null,null,null,"miejscowość, data",null,null,null,null,null,null,null,null,null,null,null,null,null,null,null,null,null,null,null,null,null,null,null,null,null,null,null,null,"Podpis imię i nazwisko wnioskującego \n(osoby upoważnionej/pełnomocnika)"]
[]
[]
[]
[]
[]
[null,null,null,"* bydło ras mięsnych: limousine (LM), charolaise (CH), angus (AN), (AR), hereford (HH), salers (SL), simental (SM), galloway (GA), highland (HI), belgijska biało-błękitna (BB), wagyu (WA), blond d’Aquitaine (BD), bydło ras mlecznych: polska holsztyńsko fryzyjska (HO), (RW), europejskie bydło czerwone (pozostałe odmiany rasy) (RE), polska czerwono – biała (ZR), polska czarno – biała (ZB) bydło w typie użytkowym kombinowanym: polska czerwona (RP),montbeliarde (MO) bydło białogrzbiete (BG),simental (SM)"]
[]
[]
[]
[]
[]
[]
[]
[]
[]
[]
[]
[]
[]
[null,null,null,"Polskie Zrzeszenie Producentów Bydła Mięsnego, ul. Smulikowskiego 4/217, 00-389 Warszawa",null,null,null,null,null,null,null,null,null,null,null,null,null,null,null,null,null,null,null,null,null,null,null,null,null,null,null,null,null,null,null,null,null,null,null,"wyd. 1 z 20.03.2025 r."]
[]
[null,null,null,"www.qmpsystem.eu, QMP@pzpbm.pl , tel. +48 666337299"]

{"sheet":"Roczny_plan_produkcji_zw","index":3,"n_rows":90,"n_cols":73,"rows_kept":90,"cut":false,"hidden":false,"merged":[[78,43,78,45],[78,46,78,48],[78,49,78,63],[78,3,78,4],[78,5,78,20],[78,21,78,31],[78,32,78,36],[78,37,78,39],[78,40,78,42],[79,3,83,63],[89,39,90,63],[87,3,88,38],[87,39,88,63],[89,3,90,38],[68,43,68,45],[68,46,68,48],[68,49,68,63],[77,3,77,4],[77,5,77,20],[77,21,77,31],[77,32,77,36],[77,37,77,39],[77,40,77,42],[77,43,77,45],[68,3,68,4],[68,5,68,20],[68,21,68,31],[68,32,68,36],[68,37,68,39],[68,40,68,42],[71,49,71,63],[72,3,72,4],[72,5,72,20],[72,21,72,31],[72,32,72,36],[72,37,72,39],[72,40,72,42],[72,43,72,45],[67,3,67,4],[67,5,67,20],[67,21,67,31],[67,32,67,36],[67,37,67,39],[67,40,67,42],[67,43,67,45],[71,3,71,4],[71,5,71,20],[71,21,71,31],[71,32,71,36],[71,37,71,39],[71,40,71,42],[71,43,71,45],[66,3,66,4],[66,5,66,20],[66,21,66,31],[66,32,66,36],[66,37,66,39],[66,40,66,42],[66,43,66,45],[66,46,66,48],[66,49,66,63],[76,3,76,4],[76,5,76,20],[76,21,76,31],[76,32,76,36],[76,37,76,39],[76,40,76,42],[76,43,76,45],[76,46,76,48],[76,49,76,63],[75,3,75,4],[75,5,75,20],[75,21,75,31],[75,32,75,36],[75,37,75,39],[75,40,75,42],[75,43,75,45],[75,46,75,48],[74,3,74,4],[74,5,74,20],[74,21,74,31],[74,32,74,36],[74,37,74,39],[74,40,74,42],[74,43,74,45],[45,3,48,63],[73,3,73,4],[73,5,73,20],[73,21,73,31],[73,32,73,36],[73,37,73,39],[69,43,69,45],[69,46,69,48],[69,49,69,63],[70,3,70,4],[70,5,70,20],[70,21,70,31],[70,32,70,36],[70,37,70,39],[70,40,70,42],[70,43,70,45],[69,3,69,4],[69,5,69,20],[69,21,69,31],[71,46,71,48],[64,43,64,45],[64,46,64,48],[65,3,65,4],[65,5,65,20],[72,49,72,63],[70,46,70,48],[70,49,70,63],[64,49,64,63],[54,3,63,4],[59,40,63,42],[59,43,63,45],[59,46,63,48],[50,3,53,63],[65,21,65,31],[65,32,65,36],[65,37,65,39],[65,40,65,42],[65,43,65,45],[64,3,64,4],[64,5,64,20],[64,21,64,31],[64,32,64,36],[64,37,64,39],[64,40,64,42],[65,46,65,48],[67,46,67,48],[67,49,67,63],[65,49,65,63],[3,3,9,12],[3,13,9,22],[3,23,9,53],[3,54,9,63],[77,46,77,48],[77,49,77,63],[54,5,63,20],[54,21,63,31],[73,40,73,42],[73,43,73,45],[73,46,73,48],[73,49,73,63],[54,37,58,42],[54,43,58,48],[59,37,63,39],[54,32,63,36],[54,49,63,63],[74,46,74,48],[74,49,74,63],[75,49,75,63],[69,32,69,36],[69,37,69,39],[69,40,69,42],[72,46,72,48],[15,3,16,63],[17,3,19,63],[20,3,25,63],[26,3,28,63],[35,3,35,19],[35,20,35,36],[35,37,35,53],[35,54,35,58],[35,59,35,63],[29,3,29,19],[29,20,29,36],[29,37,29,53],[29,54,29,63],[30,3,34,19],[30,20,34,36],[30,37,34,53],[30,54,34,63],[36,3,40,19],[36,20,40,36],[36,37,40,53],[36,54,40,58],[36,59,40,63],[41,52,44,54],[41,55,44,57],[41,58,44,60],[41,61,44,63],[41,3,44,36],[41,37,44,39],[41,40,44,42],[41,43,44,45],[41,46,44,48],[41,49,44,51]]}
[]
[]
[]
[null,null,null,{"$error":"#VALUE!"},null,null,null,null,null,null,null,null,null,{"$error":"#VALUE!"},null,null,null,null,null,null,null,null,null,"Roczny plan produkcji",null,null,null,null,null,null,null,null,null,null,null,null,null,null,null,null,null,null,null,null,null,null,null,null,null,null,null,null,null,null,{"$error":"#VALUE!"}]
[]
[]
[]
[]
[]
[]
[]
[]
[]
[]
[]
[null,null,null,"Dane wnioskodawcy / gospodarstwa"]
[]
[null,null,null,"Nazwa producenta / gospodarstwa",null,null,null,null,null,null,null,null,null,null,null,null,null,null,null,null,null,null,null,null,null,null,null,null,null,null,null,null,null,null,null,null,null,null,null,null,null,null,null,null,null,null,null,null,null,null,null,null,null,null,null,null,null,null,null,null,null,null,null,null,null,null,null,null,null,null,null,null,"Rasy mięsne:"]
[null,null,null,null,null,null,null,null,null,null,null,null,null,null,null,null,null,null,null,null,null,null,null,null,null,null,null,null,null,null,null,null,null,null,null,null,null,null,null,null,null,null,null,null,null,null,null,null,null,null,null,null,null,null,null,null,null,null,null,null,null,null,null,null,null,null,null,null,null,null,null,null,"Limousine (LM)"]
[null,null,null,null,null,null,null,null,null,null,null,null,null,null,null,null,null,null,null,null,null,null,null,null,null,null,null,null,null,null,null,null,null,null,null,null,null,null,null,null,null,null,null,null,null,null,null,null,null,null,null,null,null,null,null,null,null,null,null,null,null,null,null,null,null,null,null,null,null,null,null,null,"Charolaise (CH)"]
[null,null,null,{"$f":"IF(Wniosek!$D$45=\"\",\"\",Wniosek!$D$45)","v":""},null,null,null,null,null,null,null,null,null,null,null,null,null,null,null,null,null,null,null,null,null,null,null,null,null,null,null,null,null,null,null,null,null,null,null,null,null,null,null,null,null,null,null,null,null,null,null,null,null,null,null,null,null,null,null,null,null,null,null,null,null,null,null,null,null,null,null,null,"Angus (AN)"]
[null,null,null,null,null,null,null,null,null,null,null,null,null,null,null,null,null,null,null,null,null,null,null,null,null,null,null,null,null,null,null,null,null,null,null,null,null,null,null,null,null,null,null,null,null,null,null,null,null,null,null,null,null,null,null,null,null,null,null,null,null,null,null,null,null,null,null,null,null,null,null,null,"Red Angus (AR)"]
[null,null,null,null,null,null,null,null,null,null,null,null,null,null,null,null,null,null,null,null,null,null,null,null,null,null,null,null,null,null,null,null,null,null,null,null,null,null,null,null,null,null,null,null,null,null,null,null,null,null,null,null,null,null,null,null,null,null,null,null,null,null,null,null,null,null,null,null,null,null,null,null,"Hereford (HH)"]
[null,null,null,null,null,null,null,null,null,null,null,null,null,null,null,null,null,null,null,null,null,null,null,null,null,null,null,null,null,null,null,null,null,null,null,null,null,null,null,null,null,null,null,null,null,null,null,null,null,null,null,null,null,null,null,null,null,null,null,null,null,null,null,null,null,null,null,null,null,null,null,null,"Salers (SL)"]
[null,null,null,null,null,null,null,null,null,null,null,null,null,null,null,null,null,null,null,null,null,null,null,null,null,null,null,null,null,null,null,null,null,null,null,null,null,null,null,null,null,null,null,null,null,null,null,null,null,null,null,null,null,null,null,null,null,null,null,null,null,null,null,null,null,null,null,null,null,null,null,null,"Simental (SM)"]
[null,null,null,null,null,null,null,null,null,null,null,null,null,null,null,null,null,null,null,null,null,null,null,null,null,null,null,null,null,null,null,null,null,null,null,null,null,null,null,null,null,null,null,null,null,null,null,null,null,null,null,null,null,null,null,null,null,null,null,null,null,null,null,null,null,null,null,null,null,null,null,null,"Galloway (GA)"]
[null,null,null,"Adres producenta / gospodarstwa",null,null,null,null,null,null,null,null,null,null,null,null,null,null,null,null,null,null,null,null,null,null,null,null,null,null,null,null,null,null,null,null,null,null,null,null,null,null,null,null,null,null,null,null,null,null,null,null,null,null,null,null,null,null,null,null,null,null,null,null,null,null,null,null,null,null,null,null,"Highland (HI)"]
[null,null,null,null,null,null,null,null,null,null,null,null,null,null,null,null,null,null,null,null,null,null,null,null,null,null,null,null,null,null,null,null,null,null,null,null,null,null,null,null,null,null,null,null,null,null,null,null,null,null,null,null,null,null,null,null,null,null,null,null,null,null,null,null,null,null,null,null,null,null,null,null,"Belgijska biało-błękitna (BB)"]
[null,null,null,null,null,null,null,null,null,null,null,null,null,null,null,null,null,null,null,null,null,null,null,null,null,null,null,null,null,null,null,null,null,null,null,null,null,null,null,null,null,null,null,null,null,null,null,null,null,null,null,null,null,null,null,null,null,null,null,null,null,null,null,null,null,null,null,null,null,null,null,null,"Wagyu (WA)"]
[null,null,null,"Województwo",null,null,null,null,null,null,null,null,null,null,null,null,null,null,null,null,"Powiat",null,null,null,null,null,null,null,null,null,null,null,null,null,null,null,null,"Gmina",null,null,null,null,null,null,null,null,null,null,null,null,null,null,null,null,"Kod pocztowy",null,null,null,null,null,null,null,null,null,null,null,null,null,null,null,null,null,"Blond d’Aquitaine (BD)"]
[null,null,null,{"$f":"IF(Wniosek!$D$58=\"\",\"\",Wniosek!$D$58)","v":""},null,null,null,null,null,null,null,null,null,null,null,null,null,null,null,null,{"$f":"IF(Wniosek!$U$58=\"\",\"\",Wniosek!$U$58)","v":""},null,null,null,null,null,null,null,null,null,null,null,null,null,null,null,null,{"$f":"IF(Wniosek!$AL$58=\"\",\"\",Wniosek!$AL$58)","v":""},null,null,null,null,null,null,null,null,null,null,null,null,null,null,null,null,{"$f":"IF(Wniosek!$BC$58=\"\",\"\",Wniosek!$BC$58)","v":""},null,null,null,null,null,null,null,null,null,null,null,null,null,null,null,null,null,"Mieszańce mięsne (MM)"]
[null,null,null,null,null,null,null,null,null,null,null,null,null,null,null,null,null,null,null,null,null,null,null,null,null,null,null,null,null,null,null,null,null,null,null,null,null,null,null,null,null,null,null,null,null,null,null,null,null,null,null,null,null,null,null,null,null,null,null,null,null,null,null,null,null,null,null,null,null,null,null,null,"Rasy mleczne:"]
[null,null,null,null,null,null,null,null,null,null,null,null,null,null,null,null,null,null,null,null,null,null,null,null,null,null,null,null,null,null,null,null,null,null,null,null,null,null,null,null,null,null,null,null,null,null,null,null,null,null,null,null,null,null,null,null,null,null,null,null,null,null,null,null,null,null,null,null,null,null,null,null,"Polska holsztyńsko-fryzyjska (HO)"]
[null,null,null,null,null,null,null,null,null,null,null,null,null,null,null,null,null,null,null,null,null,null,null,null,null,null,null,null,null,null,null,null,null,null,null,null,null,null,null,null,null,null,null,null,null,null,null,null,null,null,null,null,null,null,null,null,null,null,null,null,null,null,null,null,null,null,null,null,null,null,null,null,"Rasa czerwona (RW)"]
[null,null,null,null,null,null,null,null,null,null,null,null,null,null,null,null,null,null,null,null,null,null,null,null,null,null,null,null,null,null,null,null,null,null,null,null,null,null,null,null,null,null,null,null,null,null,null,null,null,null,null,null,null,null,null,null,null,null,null,null,null,null,null,null,null,null,null,null,null,null,null,null,"Europejskie bydło czerwone (RE)"]
[null,null,null,"Poczta",null,null,null,null,null,null,null,null,null,null,null,null,null,null,null,null,"Miejscowość",null,null,null,null,null,null,null,null,null,null,null,null,null,null,null,null,"Ulica",null,null,null,null,null,null,null,null,null,null,null,null,null,null,null,null,"Nr domu",null,null,null,null,"Nr mieszkania",null,null,null,null,null,null,null,null,null,null,null,null,"Polska czerwono-biała (ZR)"]
[null,null,null,{"$f":"IF(Wniosek!$D$65=\"\",\"\",Wniosek!$D$65)","v":""},null,null,null,null,null,null,null,null,null,null,null,null,null,null,null,null,{"$f":"IF(Wniosek!$U$65=\"\",\"\",Wniosek!$U$65)","v":""},null,null,null,null,null,null,null,null,null,null,null,null,null,null,null,null,{"$f":"IF(Wniosek!$AL$65=\"\",\"\",Wniosek!$AL$65)","v":""},null,null,null,null,null,null,null,null,null,null,null,null,null,null,null,null,{"$f":"IF(Wniosek!$BC$65=\"\",\"\",Wniosek!$BC$65)","v":""},null,null,null,null,{"$f":"IF(Wniosek!$BH$65=\"\",\"\",Wniosek!$BH$65)","v":""},null,null,null,null,null,null,null,null,null,null,null,null,"Polska czarno-biała (ZB)"]
[null,null,null,null,null,null,null,null,null,null,null,null,null,null,null,null,null,null,null,null,null,null,null,null,null,null,null,null,null,null,null,null,null,null,null,null,null,null,null,null,null,null,null,null,null,null,null,null,null,null,null,null,null,null,null,null,null,null,null,null,null,null,null,null,null,null,null,null,null,null,null,null,"Rasy kombinowane:"]
[null,null,null,null,null,null,null,null,null,null,null,null,null,null,null,null,null,null,null,null,null,null,null,null,null,null,null,null,null,null,null,null,null,null,null,null,null,null,null,null,null,null,null,null,null,null,null,null,null,null,null,null,null,null,null,null,null,null,null,null,null,null,null,null,null,null,null,null,null,null,null,null,"Polska czerwona (RP)"]
[null,null,null,null,null,null,null,null,null,null,null,null,null,null,null,null,null,null,null,null,null,null,null,null,null,null,null,null,null,null,null,null,null,null,null,null,null,null,null,null,null,null,null,null,null,null,null,null,null,null,null,null,null,null,null,null,null,null,null,null,null,null,null,null,null,null,null,null,null,null,null,null,"Montbeliarde (MO)"]
[null,null,null,null,null,null,null,null,null,null,null,null,null,null,null,null,null,null,null,null,null,null,null,null,null,null,null,null,null,null,null,null,null,null,null,null,null,null,null,null,null,null,null,null,null,null,null,null,null,null,null,null,null,null,null,null,null,null,null,null,null,null,null,null,null,null,null,null,null,null,null,null,"Bydło białogrzbiete (BG)"]
[null,null,null,"Nr producenta nadany przez ARiMR",null,null,null,null,null,null,null,null,null,null,null,null,null,null,null,null,null,null,null,null,null,null,null,null,null,null,null,null,null,null,null,null,null,{"$f":"IF(Wniosek!$AL$106=\"\",\"\",Wniosek!$AL$106)","v":""},null,null,{"$f":"IF(Wniosek!$AO$106=\"\",\"\",Wniosek!$AO$106)","v":""},null,null,{"$f":"IF(Wniosek!$AR$106=\"\",\"\",Wniosek!$AR$106)","v":""},null,null,{"$f":"IF(Wniosek!$AU$106=\"\",\"\",Wniosek!$AU$106)","v":""},null,null,{"$f":"IF(Wniosek!$AX$106=\"\",\"\",Wniosek!$AX$106)","v":""},null,null,{"$f":"IF(Wniosek!$BA$106=\"\",\"\",Wniosek!$BA$106)","v":""},null,null,{"$f":"IF(Wniosek!$BD$106=\"\",\"\",Wniosek!$BD$106)","v":""},null,null,{"$f":"IF(Wniosek!$BG$106=\"\",\"\",Wniosek!$BG$106)","v":""},null,null,{"$f":"IF(Wniosek!$BJ$106=\"\",\"\",Wniosek!$BJ$106)","v":""},null,null,null,null,null,null,null,null,null,null,"Simental (SM)"]
[null,null,null,null,null,null,null,null,null,null,null,null,null,null,null,null,null,null,null,null,null,null,null,null,null,null,null,null,null,null,null,null,null,null,null,null,null,null,null,null,null,null,null,null,null,null,null,null,null,null,null,null,null,null,null,null,null,null,null,null,null,null,null,null,null,null,null,null,null,null,null,null,"Mieszańce mleczne (MS)"]
[]
[]
[null,null,null,"Prosimy o przesłanie pliku .csv, wygenerowanego z systemu IRZPlus (preferowane) lub wypełnienie poniższej tabeli."]
[]
[]
[]
[]
[null,null,null,"PLAN PRODUKCJI ZWIERZĘCEJ - STANDARD QMP BYDŁO\n(Proszę podać bydło wnioskowane do certyfikacji)"]
[]
[]
[]
[null,null,null,"Lp.",null,"Kategoria wiekowa\n(produkcyjna)*",null,null,null,null,null,null,null,null,null,null,null,null,null,null,null,"Rasa",null,null,null,null,null,null,null,null,null,null,"Ilość",null,null,null,null,"Bydło aktualnie\njest objęte\nsystemem QMP?",null,null,null,null,null,"Stosowane pasze",null,null,null,null,null,"Uwagi"]
[]
[]
[]
[]
[null,null,null,null,null,null,null,null,null,null,null,null,null,null,null,null,null,null,null,null,null,null,null,null,null,null,null,null,null,null,null,null,null,null,null,null,null,"Tak",null,null,"Nie",null,null,"Z\nwłasnego\ngospodar\nstwa",null,null,"Z zakupu"]
[]
[]
[]
[]
[null,null,null,"1.",null,null,null,null,null,null,null,null,null,null,null,null,null,null,null,null,null,null,null,null,null,null,null,null,null,null,null,null,null,null,null,null,null,null,null,null,null,null,null,null,null,null,null,null,null,null,null,null,null,null,null,null,null,null,null,null,null,null,null,null,null,null,null,null,false,false,false,false]
[null,null,null,"2.",null,null,null,null,null,null,null,null,null,null,null,null,null,null,null,null,null,null,null,null,null,null,null,null,null,null,null,null,null,null,null,null,null,null,null,null,null,null,null,null,null,null,null,null,null,null,null,null,null,null,null,null,null,null,null,null,null,null,null,null,null,null,null,null,false,false,false,false]
[null,null,null,"3.",null,null,null,null,null,null,null,null,null,null,null,null,null,null,null,null,null,null,null,null,null,null,null,null,null,null,null,null,null,null,null,null,null,null,null,null,null,null,null,null,null,null,null,null,null,null,null,null,null,null,null,null,null,null,null,null,null,null,null,null,null,null,null,null,false,false,false,false]
[null,null,null,"4.",null,null,null,null,null,null,null,null,null,null,null,null,null,null,null,null,null,null,null,null,null,null,null,null,null,null,null,null,null,null,null,null,null,null,null,null,null,null,null,null,null,null,null,null,null,null,null,null,null,null,null,null,null,null,null,null,null,null,null,null,null,null,null,null,false,false,false,false]
[null,null,null,"5.",null,null,null,null,null,null,null,null,null,null,null,null,null,null,null,null,null,null,null,null,null,null,null,null,null,null,null,null,null,null,null,null,null,null,null,null,null,null,null,null,null,null,null,null,null,null,null,null,null,null,null,null,null,null,null,null,null,null,null,null,null,null,null,null,false,false,false,false]
[null,null,null,"6.",null,null,null,null,null,null,null,null,null,null,null,null,null,null,null,null,null,null,null,null,null,null,null,null,null,null,null,null,null,null,null,null,null,null,null,null,null,null,null,null,null,null,null,null,null,null,null,null,null,null,null,null,null,null,null,null,null,null,null,null,null,null,null,null,false,false,false,false]
[null,null,null,"7.",null,null,null,null,null,null,null,null,null,null,null,null,null,null,null,null,null,null,null,null,null,null,null,null,null,null,null,null,null,null,null,null,null,null,null,null,null,null,null,null,null,null,null,null,null,null,null,null,null,null,null,null,null,null,null,null,null,null,null,null,null,null,null,null,false,false,false,false]
[null,null,null,"8.",null,null,null,null,null,null,null,null,null,null,null,null,null,null,null,null,null,null,null,null,null,null,null,null,null,null,null,null,null,null,null,null,null,null,null,null,null,null,null,null,null,null,null,null,null,null,null,null,null,null,null,null,null,null,null,null,null,null,null,null,null,null,null,null,false,false,false,false]
[null,null,null,"9.",null,null,null,null,null,null,null,null,null,null,null,null,null,null,null,null,null,null,null,null,null,null,null,null,null,null,null,null,null,null,null,null,null,null,null,null,null,null,null,null,null,null,null,null,null,null,null,null,null,null,null,null,null,null,null,null,null,null,null,null,null,null,null,null,false,false,false,false]
[null,null,null,"10.",null,null,null,null,null,null,null,null,null,null,null,null,null,null,null,null,null,null,null,null,null,null,null,null,null,null,null,null,null,null,null,null,null,null,null,null,null,null,null,null,null,null,null,null,null,null,null,null,null,null,null,null,null,null,null,null,null,null,null,null,null,null,null,null,false,false,false,false]
[null,null,null,"11.",null,null,null,null,null,null,null,null,null,null,null,null,null,null,null,null,null,null,null,null,null,null,null,null,null,null,null,null,null,null,null,null,null,null,null,null,null,null,null,null,null,null,null,null,null,null,null,null,null,null,null,null,null,null,null,null,null,null,null,null,null,null,null,null,false,false,false,false]
[null,null,null,"12.",null,null,null,null,null,null,null,null,null,null,null,null,null,null,null,null,null,null,null,null,null,null,null,null,null,null,null,null,null,null,null,null,null,null,null,null,null,null,null,null,null,null,null,null,null,null,null,null,null,null,null,null,null,null,null,null,null,null,null,null,null,null,null,null,false,false,false,false]
[null,null,null,"13.",null,null,null,null,null,null,null,null,null,null,null,null,null,null,null,null,null,null,null,null,null,null,null,null,null,null,null,null,null,null,null,null,null,null,null,null,null,null,null,null,null,null,null,null,null,null,null,null,null,null,null,null,null,null,null,null,null,null,null,null,null,null,null,null,false,false,false,false]
[null,null,null,"14.",null,null,null,null,null,null,null,null,null,null,null,null,null,null,null,null,null,null,null,null,null,null,null,null,null,null,null,null,null,null,null,null,null,null,null,null,null,null,null,null,null,null,null,null,null,null,null,null,null,null,null,null,null,null,null,null,null,null,null,null,null,null,null,null,false,false,false,false]
[null,null,null,"15.",null,null,null,null,null,null,null,null,null,null,null,null,null,null,null,null,null,null,null,null,null,null,null,null,null,null,null,null,null,null,null,null,null,null,null,null,null,null,null,null,null,null,null,null,null,null,null,null,null,null,null,null,null,null,null,null,null,null,null,null,null,null,null,null,false,false,false,false]
[null,null,null,"*Należy wpisać ilość zwierząt w następujących kategoriach:\nKrowy mamki – powyżej 24 miesięcy, cielęta – do 12 miesięcy, jałówki (przeznaczone na remont stada) – powyżej 12 miesięcy,\nbydło opasowe (jałówki, byczki, wolce) – powyżej 12 miesięcy, buhaje.",null,null,null,null,null,null,null,null,null,null,null,null,null,null,null,null,null,null,null,null,null,null,null,null,null,null,null,null,null,null,null,null,null,null,null,null,null,null,null,null,null,null,null,null,null,null,null,null,null,null,null,null,null,null,null,null,null,null,null,null,null,null,null,null,null,null,{"$f":"COUNTIF(BS65:BS79,TRUE)","v":0},{"$f":"COUNTIF(BT65:BT79,TRUE)","v":0}]
[]
[]
[]
[]
[]
[]
[]
[null,null,null,"Polskie Zrzeszenie Producentów Bydła Mięsnego, ul. Smulikowskiego 4/217, 00-389 Warszawa",null,null,null,null,null,null,null,null,null,null,null,null,null,null,null,null,null,null,null,null,null,null,null,null,null,null,null,null,null,null,null,null,null,null,null,"wyd. 1 z 20.03.2025 r."]
[]
[null,null,null,"www.qmpsystem.eu, QMP@pzpbm.pl , tel. +48 666337299"]

{"sheet":"Roczny_plan_produkcji _ros","index":4,"n_rows":75,"n_cols":9,"rows_kept":75,"cut":false,"hidden":false,"merged":[[61,6,62,6],[61,8,62,8],[74,3,75,6],[74,7,75,8],[67,4,67,7],[68,4,71,7],[63,4,66,4],[63,5,66,7],[72,3,73,6],[72,7,73,8],[3,3,7,4],[3,5,9,8],[15,3,19,8],[20,3,25,3],[20,4,25,4],[20,5,25,5],[20,6,25,6],[20,7,25,7],[20,8,25,8]]}
[]
[]
[]
[null,null,null,null,null,"Roczny plan produkcji"]
[]
[]
[]
[]
[]
[]
[]
[]
[]
[]
[]
[null,null,null,"PLAN PRODUKCJI ROŚLINNEJ - STANDARD QMP BYDŁO\n(Proszę podać wszystkie uprawy w gospodarstwie.)"]
[]
[]
[]
[]
[null,null,null,"Lp.","Nazwa uprawy","Poplon","Powierzchnia uprawy \n(w hektarach)","Planowany zbiór\n(w tonach)","Uwagi"]
[]
[]
[]
[]
[]
[null,null,null,"1."]
[null,null,null,"2."]
[null,null,null,"3."]
[null,null,null,"4."]
[null,null,null,"5."]
[null,null,null,"6."]
[null,null,null,"7."]
[null,null,null,"8."]
[null,null,null,"9."]
[null,null,null,"10."]
[null,null,null,"11."]
[null,null,null,"12."]
[null,null,null,"13."]
[null,null,null,"14."]
[null,null,null,"15."]
[null,null,null,"16."]
[null,null,null,"17."]
[null,null,null,"18."]
[null,null,null,"19."]
[null,null,null,"20."]
[null,null,null,"21."]
[null,null,null,"22."]
[null,null,null,"23."]
[null,null,null,"24."]
[null,null,null,"25."]
[null,null,null,"26."]
[null,null,null,"27."]
[null,null,null,"28."]
[null,null,null,"29."]
[null,null,null,"30."]
[null,null,null,"31."]
[null,null,null,"32."]
[null,null,null,"33."]
[null,null,null,"34."]
[null,null,null,"35."]
[null,null,null,null,null,null,{"$f":"SUM(G27:G61)","v":0},null,{"$f":"Zlecenie_certyfikacji!AB34","v":""}]
[]
[null,null,null,null,{"$f":"IF(Wniosek!$T$326=\"\",\"\",CONCATENATE(Wniosek!$G$326,\" \",TEXT(Wniosek!$T$326,\"dd.mm.rrrr\")))","v":""},{"$f":"IF(Wniosek!$AJ$326=\"\",\"\",Wniosek!$AJ$326)","v":""}]
[]
[]
[]
[null,null,null,null,"…..............................................................                   ….............................................................."]
[null,null,null,null,"            miejscowość, data                                                Podpis imię i nazwisko wnioskującego \n                                                                                         (osoby upoważnionej/pełnomocnika)"]
[]
[]
[]
[null,null,null,"Polskie Zrzeszenie Producentów Bydła Mięsnego, ul. Smulikowskiego 4/217, 00-389 Warszawa",null,null,null,"wyd. 1 z 20.03.2025 r."]
[]
[null,null,null,"www.qmpsystem.eu, QMP@pzpbm.pl , tel. +48 666337299"]

{"sheet":"Plan_kontroli_zdrowia_bydła","index":5,"n_rows":258,"n_cols":68,"rows_kept":258,"cut":false,"hidden":false,"merged":[[153,3,154,63],[155,3,166,63],[167,3,168,63],[169,3,184,63],[185,3,186,63],[187,3,205,63],[104,3,106,36],[123,3,127,22],[123,23,129,63],[135,3,136,63],[137,3,152,63],[117,3,118,38],[117,39,118,63],[119,3,120,38],[119,39,120,63],[110,3,111,5],[112,6,112,31],[112,32,112,34],[112,35,112,60],[112,61,112,63],[113,6,116,31],[113,32,114,34],[113,35,116,60],[107,6,111,31],[255,3,256,38],[255,39,256,63],[257,3,258,38],[257,39,258,63],[206,3,207,63],[208,3,225,63],[226,3,227,63],[228,3,233,63],[234,3,237,63],[238,3,250,63],[107,35,111,60],[71,41,73,63],[92,3,100,11],[101,37,103,38],[101,39,103,40],[101,41,103,63],[104,37,106,38],[104,39,106,40],[104,41,106,63],[101,3,103,36],[92,41,94,63],[95,12,97,36],[95,37,97,38],[95,39,97,40],[95,41,97,63],[98,12,100,36],[98,37,100,38],[98,39,100,40],[98,41,100,63],[83,41,85,63],[86,41,88,63],[89,41,91,63],[92,12,94,14],[92,15,94,16],[92,17,94,19],[92,20,94,21],[92,22,94,40],[74,41,76,63],[77,41,79,63],[89,12,91,20],[89,21,91,36],[89,37,91,38],[89,39,91,40],[80,41,82,63],[83,37,85,38],[83,39,85,40],[74,12,76,20],[74,21,76,36],[77,37,79,38],[77,39,79,40],[83,12,85,36],[86,12,88,36],[86,37,88,38],[86,39,88,40],[54,3,55,36],[59,12,61,36],[62,12,64,36],[65,12,67,36],[54,37,55,38],[54,39,55,40],[59,41,61,63],[62,41,64,63],[65,41,67,63],[65,37,67,38],[65,39,67,40],[59,39,61,40],[59,37,61,38],[62,37,64,38],[62,39,64,40],[59,3,70,11],[56,41,58,63],[56,12,58,20],[56,21,58,36],[68,12,70,20],[68,41,70,63],[41,61,44,63],[45,37,48,45],[49,3,52,19],[49,20,52,63],[41,3,44,36],[41,37,44,39],[41,40,44,42],[41,43,44,45],[41,46,44,48],[41,49,44,51],[45,3,48,19],[45,20,48,36],[45,46,48,47],[45,48,48,63],[80,3,91,11],[80,12,82,36],[80,37,82,38],[80,39,82,40],[74,37,76,38],[74,39,76,40],[77,12,79,36],[35,3,35,19],[35,20,35,36],[35,37,35,53],[41,52,44,54],[74,3,79,11],[56,3,58,11],[68,37,70,38],[68,39,70,40],[68,21,70,36],[71,3,73,11],[71,12,73,20],[71,21,73,36],[71,37,73,38],[71,39,73,40],[54,41,55,63],[56,37,58,38],[56,39,58,40],[15,3,16,63],[17,3,19,63],[20,3,25,63],[26,3,28,63],[56,66,58,66],[59,66,61,66],[62,66,64,66],[35,54,35,58],[35,59,35,63],[36,3,40,19],[36,20,40,36],[36,37,40,53],[36,54,40,58],[36,59,40,63],[29,3,29,19],[29,20,29,36],[29,37,29,53],[29,54,29,63],[30,3,34,19],[30,20,34,36],[30,37,34,53],[30,54,34,63],[41,55,44,57],[41,58,44,60],[77,66,79,66],[80,66,82,66],[56,67,58,67],[59,67,61,67],[62,67,64,67],[65,67,67,67],[68,67,70,67],[71,67,73,67],[74,67,76,67],[77,67,79,67],[80,67,82,67],[3,3,9,12],[3,13,9,22],[3,23,9,53],[3,54,9,63],[104,67,106,67],[83,66,85,66],[86,66,88,66],[89,66,91,66],[92,66,94,66],[95,66,97,66],[98,66,100,66],[101,66,103,66],[104,66,106,66],[83,67,85,67],[86,67,88,67],[89,67,91,67],[92,67,94,67],[95,67,97,67],[98,67,100,67],[101,67,103,67],[65,66,67,66],[68,66,70,66],[71,66,73,66],[74,66,76,66]]}
[]
[]
[]
[null,null,null,{"$error":"#VALUE!"},null,null,null,null,null,null,null,null,null,{"$error":"#VALUE!"},null,null,null,null,null,null,null,null,null,"Plan kontroli zdrowia bydła",null,null,null,null,null,null,null,null,null,null,null,null,null,null,null,null,null,null,null,null,null,null,null,null,null,null,null,null,null,null,{"$error":"#VALUE!"}]
[]
[]
[]
[]
[]
[]
[]
[]
[]
[]
[]
[null,null,null,"Dane wnioskodawcy / gospodarstwa"]
[]
[null,null,null,"Nazwa producenta / gospodarstwa"]
[]
[]
[null,null,null,{"$f":"IF(Wniosek!$D$45=\"\",\"\",Wniosek!$D$45)","v":""}]
[]
[]
[]
[]
[]
[null,null,null,"Adres producenta / gospodarstwa"]
[]
[]
[null,null,null,"Województwo",null,null,null,null,null,null,null,null,null,null,null,null,null,null,null,null,"Powiat",null,null,null,null,null,null,null,null,null,null,null,null,null,null,null,null,"Gmina",null,null,null,null,null,null,null,null,null,null,null,null,null,null,null,null,"Kod pocztowy"]
[null,null,null,{"$f":"IF(Wniosek!$D$58=\"\",\"\",Wniosek!$D$58)","v":""},null,null,null,null,null,null,null,null,null,null,null,null,null,null,null,null,{"$f":"IF(Wniosek!$U$58=\"\",\"\",Wniosek!$U$58)","v":""},null,null,null,null,null,null,null,null,null,null,null,null,null,null,null,null,{"$f":"IF(Wniosek!$AL$58=\"\",\"\",Wniosek!$AL$58)","v":""},null,null,null,null,null,null,null,null,null,null,null,null,null,null,null,null,{"$f":"IF(Wniosek!$BC$58=\"\",\"\",Wniosek!$BC$58)","v":""}]
[]
[]
[]
[]
[null,null,null,"Poczta",null,null,null,null,null,null,null,null,null,null,null,null,null,null,null,null,"Miejscowość",null,null,null,null,null,null,null,null,null,null,null,null,null,null,null,null,"Ulica",null,null,null,null,null,null,null,null,null,null,null,null,null,null,null,null,"Nr domu",null,null,null,null,"Nr mieszkania"]
[null,null,null,{"$f":"IF(Wniosek!$D$65=\"\",\"\",Wniosek!$D$65)","v":""},null,null,null,null,null,null,null,null,null,null,null,null,null,null,null,null,{"$f":"IF(Wniosek!$U$65=\"\",\"\",Wniosek!$U$65)","v":""},null,null,null,null,null,null,null,null,null,null,null,null,null,null,null,null,{"$f":"IF(Wniosek!$AL$65=\"\",\"\",Wniosek!$AL$65)","v":""},null,null,null,null,null,null,null,null,null,null,null,null,null,null,null,null,{"$f":"IF(Wniosek!$BC$65=\"\",\"\",Wniosek!$BC$65)","v":""},null,null,null,null,{"$f":"IF(Wniosek!$BH$65=\"\",\"\",Wniosek!$BH$65)","v":""}]
[]
[]
[]
[]
[null,null,null,"Nr producenta nadany przez ARiMR",null,null,null,null,null,null,null,null,null,null,null,null,null,null,null,null,null,null,null,null,null,null,null,null,null,null,null,null,null,null,null,null,null,{"$f":"IF(Wniosek!$AL$106=\"\",\"\",Wniosek!$AL$106)","v":""},null,null,{"$f":"IF(Wniosek!$AO$106=\"\",\"\",Wniosek!$AO$106)","v":""},null,null,{"$f":"IF(Wniosek!$AR$106=\"\",\"\",Wniosek!$AR$106)","v":""},null,null,{"$f":"IF(Wniosek!$AU$106=\"\",\"\",Wniosek!$AU$106)","v":""},null,null,{"$f":"IF(Wniosek!$AX$106=\"\",\"\",Wniosek!$AX$106)","v":""},null,null,{"$f":"IF(Wniosek!$BA$106=\"\",\"\",Wniosek!$BA$106)","v":""},null,null,{"$f":"IF(Wniosek!$BD$106=\"\",\"\",Wniosek!$BD$106)","v":""},null,null,{"$f":"IF(Wniosek!$BG$106=\"\",\"\",Wniosek!$BG$106)","v":""},null,null,{"$f":"IF(Wniosek!$BJ$106=\"\",\"\",Wniosek!$BJ$106)","v":""}]
[]
[]
[]
[null,null,null,"Plan kontroli zdrowia bydła\nsporządzony w dniu",null,null,null,null,null,null,null,null,null,null,null,null,null,null,null,null,null,null,null,null,null,null,null,null,null,null,null,null,null,null,null,null,null,"Nr siedziby stada",null,null,null,null,null,null,null,null,"PL"]
[]
[]
[]
[null,null,null,"W porozumieniu\nz lekarzem weterynarii"]
[]
[]
[]
[]
[null,null,null,"Plan leczenia",null,null,null,null,null,null,null,null,null,null,null,null,null,null,null,null,null,null,null,null,null,null,null,null,null,null,null,null,null,null,null,null,null,"Tak",null,"Nie",null,"Uwagi"]
[]
[null,null,null,"KWARANTANNA",null,null,null,null,null,null,null,null,"Dni kwarantanny:",null,null,null,null,null,null,null,null,null,null,null,null,null,null,null,null,null,null,null,null,null,null,null,null,null,null,null,null,null,null,null,null,null,null,null,null,null,null,null,null,null,null,null,null,null,null,null,null,null,null,null,null,null,false,false]
[]
[]
[null,null,null,"SZCZEPIENIA",null,null,null,null,null,null,null,null,"IBR",null,null,null,null,null,null,null,null,null,null,null,null,null,null,null,null,null,null,null,null,null,null,null,null,null,null,null,null,null,null,null,null,null,null,null,null,null,null,null,null,null,null,null,null,null,null,null,null,null,null,null,null,null,false,false]
[]
[]
[null,null,null,null,null,null,null,null,null,null,null,null,"BVD",null,null,null,null,null,null,null,null,null,null,null,null,null,null,null,null,null,null,null,null,null,null,null,null,null,null,null,null,null,null,null,null,null,null,null,null,null,null,null,null,null,null,null,null,null,null,null,null,null,null,null,null,null,false,false]
[]
[]
[null,null,null,null,null,null,null,null,null,null,null,null,"BRD",null,null,null,null,null,null,null,null,null,null,null,null,null,null,null,null,null,null,null,null,null,null,null,null,null,null,null,null,null,null,null,null,null,null,null,null,null,null,null,null,null,null,null,null,null,null,null,null,null,null,null,null,null,false,false]
[]
[]
[null,null,null,null,null,null,null,null,null,null,null,null,"inne:",null,null,null,null,null,null,null,null,null,null,null,null,null,null,null,null,null,null,null,null,null,null,null,null,null,null,null,null,null,null,null,null,null,null,null,null,null,null,null,null,null,null,null,null,null,null,null,null,null,null,null,null,null,false,false]
[]
[]
[null,null,null,"ODROBACZANIE",null,null,null,null,null,null,null,null,"Środek:",null,null,null,null,null,null,null,null,null,null,null,null,null,null,null,null,null,null,null,null,null,null,null,null,null,null,null,null,null,null,null,null,null,null,null,null,null,null,null,null,null,null,null,null,null,null,null,null,null,null,null,null,null,false,false]
[]
[]
[null,null,null,"DEZYNFEKCJA",null,null,null,null,null,null,null,null,"Środek:",null,null,null,null,null,null,null,null,null,null,null,null,null,null,null,null,null,null,null,null,null,null,null,null,null,null,null,null,"Częstotliwość stosowania:",null,null,null,null,null,null,null,null,null,null,null,null,null,null,null,null,null,null,null,null,null,null,null,null,false,false]
[]
[]
[null,null,null,null,null,null,null,null,null,null,null,null,"Lampy",null,null,null,null,null,null,null,null,null,null,null,null,null,null,null,null,null,null,null,null,null,null,null,null,null,null,null,null,null,null,null,null,null,null,null,null,null,null,null,null,null,null,null,null,null,null,null,null,null,null,null,null,null,false,false]
[]
[]
[null,null,null,"DERATYZACJA",null,null,null,null,null,null,null,null,"Klatki",null,null,null,null,null,null,null,null,null,null,null,null,null,null,null,null,null,null,null,null,null,null,null,null,null,null,null,null,null,null,null,null,null,null,null,null,null,null,null,null,null,null,null,null,null,null,null,null,null,null,null,null,null,false,false]
[]
[]
[null,null,null,null,null,null,null,null,null,null,null,null,"Karmnik deratyzacyjny",null,null,null,null,null,null,null,null,null,null,null,null,null,null,null,null,null,null,null,null,null,null,null,null,null,null,null,null,null,null,null,null,null,null,null,null,null,null,null,null,null,null,null,null,null,null,null,null,null,null,null,null,null,false,false]
[]
[]
[null,null,null,null,null,null,null,null,null,null,null,null,"Pułapki",null,null,null,null,null,null,null,null,null,null,null,null,null,null,null,null,null,null,null,null,null,null,null,null,null,null,null,null,null,null,null,null,null,null,null,null,null,null,null,null,null,null,null,null,null,null,null,null,null,null,null,null,null,false,false]
[]
[]
[null,null,null,null,null,null,null,null,null,null,null,null,"inne",null,null,null,null,null,null,null,null,null,null,null,null,null,null,null,null,null,null,null,null,null,null,null,null,null,null,null,null,null,null,null,null,null,null,null,null,null,null,null,null,null,null,null,null,null,null,null,null,null,null,null,null,null,false,false]
[]
[]
[null,null,null,"MONITOROWANIE STANU ZDROWIA\nZWIERZĄT",null,null,null,null,null,null,null,null,"Tak",null,null,null,null,"Nie",null,null,null,null,"Dodatkowo:",null,null,null,null,null,null,null,null,null,null,null,null,null,null,null,null,null,null,null,null,null,null,null,null,null,null,null,null,null,null,null,null,null,null,null,null,null,null,null,null,null,null,null,false,false]
[]
[]
[null,null,null,null,null,null,null,null,null,null,null,null,"Stosowanie szybkich testów diagnostycznych",null,null,null,null,null,null,null,null,null,null,null,null,null,null,null,null,null,null,null,null,null,null,null,null,null,null,null,null,null,null,null,null,null,null,null,null,null,null,null,null,null,null,null,null,null,null,null,null,null,null,null,null,null,false,false]
[]
[]
[null,null,null,null,null,null,null,null,null,null,null,null,"Pobieranie próbek do diagnostyki kierunkowej",null,null,null,null,null,null,null,null,null,null,null,null,null,null,null,null,null,null,null,null,null,null,null,null,null,null,null,null,null,null,null,null,null,null,null,null,null,null,null,null,null,null,null,null,null,null,null,null,null,null,null,null,null,false,false]
[]
[]
[null,null,null,"Czy jest opracowany i wdrożony PLAN MINIMALIZACJI STOSOWANIA ANTYBIOTYKÓW OGÓŁEM",null,null,null,null,null,null,null,null,null,null,null,null,null,null,null,null,null,null,null,null,null,null,null,null,null,null,null,null,null,null,null,null,null,null,null,null,null,null,null,null,null,null,null,null,null,null,null,null,null,null,null,null,null,null,null,null,null,null,null,null,null,null,false,false]
[]
[]
[null,null,null,"Czy jest opracowany i wdrożony PLAN UNIKANIA STOSOWANIA ŚRODKÓW PRZECIWDROBNOUSTROJOWYCH",null,null,null,null,null,null,null,null,null,null,null,null,null,null,null,null,null,null,null,null,null,null,null,null,null,null,null,null,null,null,null,null,null,null,null,null,null,null,null,null,null,null,null,null,null,null,null,null,null,null,null,null,null,null,null,null,null,null,null,null,null,null,false,false]
[]
[]
[null,null,null,null,null,null,{"$f":"IF(Wniosek!$T$326=\"\",\"\",CONCATENATE(Wniosek!$G$326,\" \",TEXT(Wniosek!$T$326,\"dd.mm.rrrr\")))","v":""},null,null,null,null,null,null,null,null,null,null,null,null,null,null,null,null,null,null,null,null,null,null,null,null,null,null,null,null,{"$f":"IF(Wniosek!$AJ$326=\"\",\"\",Wniosek!$AJ$326)","v":""}]
[]
[]
[]
[]
[null,null,null,null,null,null,"….....................................................................",null,null,null,null,null,null,null,null,null,null,null,null,null,null,null,null,null,null,null,null,null,null,null,null,null,null,null,null,"…....................................................................."]
[null,null,null,null,null,null,"miejscowość, data",null,null,null,null,null,null,null,null,null,null,null,null,null,null,null,null,null,null,null,null,null,null,null,null,null,null,null,null,"Podpis imię i nazwisko wnioskującego \n(osoby upoważnionej/pełnomocnika)"]
[]
[]
[]
[null,null,null,"Polskie Zrzeszenie Producentów Bydła Mięsnego, ul. Smulikowskiego 4/217, 00-389 Warszawa",null,null,null,null,null,null,null,null,null,null,null,null,null,null,null,null,null,null,null,null,null,null,null,null,null,null,null,null,null,null,null,null,null,null,null,"wyd. 1 z 20.03.2025 r."]
[]
[null,null,null,"www.qmpsystem.eu, QMP@pzpbm.pl , tel. +48 666337299"]
[]
[]
[]
[null,null,null,null,null,null,null,null,null,null,null,null,null,null,null,null,null,null,null,null,null,null,null,"Plan kontroli zdrowia bydła"]
[]
[]
[]
[]
[]
[]
[]
[]
[]
[]
[]
[null,null,null,"KWARANTANNA – zalecenia:"]
[]
[null,null,null,"Dobrą praktyką jest stosowanie kwarantanny dla nowo zakupionego bydła. Jej celem jest ochrona stada przed wprowadzeniem niebezpiecznych chorób zakaźnych. Zwierzęta zakupione powinny przebywać w osobnym, specjalnie przygotowanym pomieszczeniu, stosując zasadę „całe pomieszczenie pełne – całe pomieszczenie puste”. Oznacza to, że przed przyjęciem kolejnej grupy bydła pomieszczenie należy całkowicie opróżnić, a następnie dokładnie umyć i zdezynfekować. Optymalny czas kwarantanny to 4– 6 tygodni. Po co najmniej 4 tygodniach można rozpocząć aklimatyzację trwającą minimum 3 tygodnie, podczas której bydło powinno przejść obowiązujący w gospodarstwie program szczepień lub zyskać odporność naturalną."]
[]
[]
[]
[]
[]
[]
[]
[]
[]
[]
[]
[]
[]
[]
[]
[null,null,null,"SZCZEPIENIA – zalecenia:"]
[]
[null,null,null,"W Polsce szczepienia bydła są zalecaną, choć nieobowiązkową praktyką. Ich celem jest skuteczna ochrona przed najczęściej występującymi chorobami. Hodowcy, którzy unikają metafilaktyki, zazwyczaj całkowicie rezygnują z profilaktyki zdrowotnej, co zwiększa ryzyko poważnych strat. Regularne szczepienia na choroby takie jak BVD czy IBR pozwalają ograniczyć ryzyko infekcji i zapewnić zdrowie zwierząt. Warto wdrożyć tę metodę, ponieważ przynosi wymierne korzyści zdrowotne oraz ekonomiczne dla gospodarstwa."]
[]
[]
[]
[]
[]
[]
[]
[]
[]
[]
[]
[null,null,null,"ODROBACZANIE – zalecenia:"]
[]
[null,null,null,"W Polsce odrobaczanie bydła jest niezwykle ważnym działaniem, zwłaszcza ze względu na zdrowie i wydajność zwierząt. Obecność pasożytów prowadzi do znacznych strat gospodarczych oraz pogorszenia kondycji bydła, obniżenia odporności, masy ciała, a nawet problemów rozrodczych. Optymalnym rozwiązaniem jest regularne stosowanie preparatów odrobaczających trzy razy w ciągu roku: przed rozpoczęciem sezonu wypasu, w jego trakcie oraz po zakończeniu wypasu. Taka częstotliwość zwiększa skuteczność leczenia. Ważna jest również rotacja stosowanych preparatów, co zapobiega uodpornieniu się pasożytów. Pamiętaj o konieczności zachowania odpowiednich okresów karencji po zastosowaniu leków."]
[]
[]
[]
[]
[]
[]
[]
[]
[]
[]
[]
[]
[]
[]
[]
[null,null,null,"DEZYNFEKCJA – zalecenia:"]
[]
[null,null,null,"Aby zachować odpowiedni standard i prawidłową higienę w oborach należy stosować dezynsekcję oraz dezynfekcję. Najbardziej uciążliwym owadem jest mucha domowa. Dezynfekcja, aby była skuteczna, musi być prawidłowo przeprowadzona. Dezynfekowaną powierzchnię należy oczyścić mechanicznie (usunąć obornik, pajęczyny, kurz), następnie umyć, a potem tak przygotowaną dezynfekować. Ważne, aby przed rozpoczęciem działań skonsultować się z lekarzem weterynarii, który zajmuje się stadem. Lekarz prowadzący najlepiej zna status zdrowotny stada i podpowie, jak często i jakim preparatem dezynfekować obiekty. Najbardziej uciążliwym owadem dla zwierząt inwentarskich jest mucha domowa.\nAby ustrzec się przed inwazją owadów, należy stosować metody zapobiegawcze. Skutecznym sposobem są pułapki na muchy rozwieszane w nasłonecznionych, nieprzewiewnych miejscach na zewnątrz jak też i w oborach. Do metod mechanicznych zalicza się też lampy. W tym przypadku również należy pamiętać o ich odpowiednim usytuowaniu."]
[]
[]
[]
[]
[]
[]
[]
[]
[]
[]
[]
[]
[]
[]
[]
[]
[]
[]
[null,null,null,"DERATYZACJA – zalecenia:"]
[]
[null,null,null,"Deratyzacja, odszczurzanie – zwalczanie za pomocą środków chemicznych, fizycznych lub biologicznych wszelkich szkodliwych gryzoni, Przeważnie zatrutym pokarmem lub za pomocą pułapek, rzadziej innymi metodami. Punktem wyjścia podczas przystąpienia do deratyzacji jest identyfikacja szkodnika, a cały proces powinien zakończyć się powtarzaną profilaktyką.\nMetody deratyzacji:\n- Metody mechaniczne (pułapki żywo-łowne, pułapki sprężynowe, innego rodzaju pułapki)\n- Metody chemiczne (stosowanie pestycydów, rodentycydów [trutek na gryzonie], antykoagulantów)\n- Lepszy efekt daje łączenie metod zwalczania gryzoni."]
[]
[]
[]
[]
[]
[]
[]
[]
[]
[]
[]
[]
[]
[]
[]
[]
[]
[null,null,null,"MONITOROWANIE STANU ZDROWIA ZWIERZĄT – zalecenia:"]
[]
[null,null,null,"Zapobieganie chorobom poprzez wczesne wykrywanie jej symptomów, zastosowanie szybkich testów diagnostycznych, pobieranie próbek do diagnostyki kierunkowej oraz wdrożenie leczenia w porozumieniu z lekarzem weterynarii."]
[]
[]
[]
[]
[]
[null,null,null,"MINIMALIZACJA STOSOWANIA ANTYBIOTYKÓW, UNIKANIA STOSOWANIA ŚRODKÓW PRZECIWDROBNOUSTROJOWYCH – zalecenia:"]
[]
[]
[]
[null,null,null,".- Wdrażanie i przestrzeganie ścisłych zasad bioasekuracji\n - Kwarantanna w stosunku do zwierząt nowowprowadzanych do stada\n - Utrzymanie właściwych warunków zoohigienicznych\n - Opracowanie i realizacja planu profilaktyki immunologicznej (szczepienia)\n - Antybiotyki mogą być stosowane tylko z przepisu i pod nadzorem lekarza weterynarii."]
[]
[]
[]
[]
[]
[]
[]
[]
[]
[]
[]
[]
[]
[]
[]
[]
[null,null,null,"Polskie Zrzeszenie Producentów Bydła Mięsnego, ul. Smulikowskiego 4/217, 00-389 Warszawa",null,null,null,null,null,null,null,null,null,null,null,null,null,null,null,null,null,null,null,null,null,null,null,null,null,null,null,null,null,null,null,null,null,null,null,"wyd. 1 z 20.03.2025 r."]
[]
[null,null,null,"www.qmpsystem.eu, QMP@pzpbm.pl , tel. +48 666337299"]

{"sheet":"Plan_żywienia","index":6,"n_rows":91,"n_cols":67,"rows_kept":91,"cut":false,"hidden":false,"merged":[[88,25,88,43],[88,44,88,63],[89,3,89,4],[89,5,89,24],[89,25,89,43],[89,44,89,63],[90,3,90,4],[90,5,90,24],[90,25,90,43],[90,44,90,63],[69,3,73,22],[69,23,75,63],[81,3,86,4],[81,5,86,24],[81,25,86,43],[81,44,86,63],[87,3,87,4],[87,5,87,24],[87,25,87,43],[87,44,87,63],[88,3,88,4],[88,5,88,24],[0,3,0,38],[0,39,0,63],[23,3,23,4],[23,5,23,24],[23,25,23,43],[23,44,23,63],[15,3,20,4],[15,5,20,24],[15,25,20,43],[15,44,20,63],[21,3,21,4],[21,5,21,24],[21,25,21,43],[21,44,21,63],[3,3,9,12],[3,13,9,22],[25,66,27,66],[24,3,24,4],[24,5,24,24],[24,25,24,43],[24,44,24,63],[25,3,45,63],[63,3,64,38],[63,39,64,63],[51,6,55,31],[51,35,55,60],[56,6,56,31],[56,32,56,34],[56,35,56,60],[56,61,56,63],[57,6,60,31],[57,32,58,34],[57,35,60,60],[3,23,9,53],[3,54,9,63],[61,3,62,38],[61,39,62,63],[22,3,22,4],[22,5,22,24],[22,25,22,43],[22,44,22,63]]}
[]
[]
[]
[null,null,null,{"$error":"#VALUE!"},null,null,null,null,null,null,null,null,null,{"$error":"#VALUE!"},null,null,null,null,null,null,null,null,null,"Plan żywienia – QMP Bydło",null,null,null,null,null,null,null,null,null,null,null,null,null,null,null,null,null,null,null,null,null,null,null,null,null,null,null,null,null,null,{"$error":"#VALUE!"}]
[]
[]
[]
[]
[]
[]
[]
[]
[]
[]
[]
[null,null,null,"Lp.",null,"Grupa technologiczna\n(> 2 m-ca życia; 2-6 m-cy życia; 6-12 m-cy życia; 12-24 m-cy życia)",null,null,null,null,null,null,null,null,null,null,null,null,null,null,null,null,null,null,null,"Pasze własne\n(rodzaj, skład, orientacyjne\nproporcje)",null,null,null,null,null,null,null,null,null,null,null,null,null,null,null,null,null,null,"Pasze z zakupu\n(nazwa produktu, producent,\nnr partii, data przydatności)"]
[]
[]
[]
[]
[]
[null,null,null,"1."]
[null,null,null,"2."]
[null,null,null,"3."]
[null,null,null,"4."]
[null,null,null,"W przypadku korzystania z pasz oznaczonych certyfikatem GMP+ prosimy o weryfikację czy lokalny dostawca lub producent spełniają wymogi certyfikacji i znajdują się na liście certyfikowanych podmiotów: https://portal.gmpplus.org/en-US/cdb/certified-companies \nOświadczam, że:\n- stosując produkty uboczne przemysłu rolno-spożywczego posiadam deklarację dostawcy, że dostarczany surowiec jest przeznaczony do spożycia przez zwierzęta gospodarskie,\n- zakupione dodatkowo pasze, w tym dodatki paszowe są ewidencjonowane (nazwa produktu, producent, nr partii, data przydatności) np.: w postaci faktur z zakupu o ile zawierają ww. Dane,\n- wyżej wymienione dokumenty przechowuję przez co najmniej rok,",null,null,null,null,null,null,null,null,null,null,null,null,null,null,null,null,null,null,null,null,null,null,null,null,null,null,null,null,null,null,null,null,null,null,null,null,null,null,null,null,null,null,null,null,null,null,null,null,null,null,null,null,null,null,null,null,null,null,null,null,null,null,"www"]
[]
[]
[]
[]
[]
[]
[]
[]
[]
[]
[]
[]
[]
[]
[]
[]
[]
[]
[]
[]
[]
[]
[]
[]
[]
[null,null,null,null,null,null,{"$f":"IF(Wniosek!$T$326=\"\",\"\",CONCATENATE(Wniosek!$G$326,\" \",TEXT(Wniosek!$T$326,\"dd.mm.rrrr\")))","v":""},null,null,null,null,null,null,null,null,null,null,null,null,null,null,null,null,null,null,null,null,null,null,null,null,null,null,null,null,{"$f":"IF(Wniosek!$AJ$326=\"\",\"\",Wniosek!$AJ$326)","v":""}]
[]
[]
[]
[]
[null,null,null,null,null,null,"….....................................................................",null,null,null,null,null,null,null,null,null,null,null,null,null,null,null,null,null,null,null,null,null,null,null,null,null,null,null,null,"…....................................................................."]
[null,null,null,null,null,null,"miejscowość, data",null,null,null,null,null,null,null,null,null,null,null,null,null,null,null,null,null,null,null,null,null,null,null,null,null,null,null,null,"Podpis imię i nazwisko wnioskującego \n(osoby upoważnionej/pełnomocnika)"]
[]
[]
[]
[null,null,null,"Polskie Zrzeszenie Producentów Bydła Mięsnego, ul. Smulikowskiego 4/217, 00-389 Warszawa",null,null,null,null,null,null,null,null,null,null,null,null,null,null,null,null,null,null,null,null,null,null,null,null,null,null,null,null,null,null,null,null,null,null,null,"wyd. 1 z 20.03.2025 r."]
[]
[null,null,null,"www.qmpsystem.eu, QMP@pzpbm.pl , tel. +48 666337299"]
[]
[]
[]
[]
[]
[]
[]
[]
[]
[]
[]
[]
[]
[]
[]
[]
[]
[null,null,null,"Lp.",null,"Grupa technologiczna\n(> 2 m-ca życia; 2-6 m-cy życia; 6-12 m-cy życia; 12-24 m-cy życia)",null,null,null,null,null,null,null,null,null,null,null,null,null,null,null,null,null,null,null,"Pasze własne\n(rodzaj, skład, orientacyjne\nproporcje)",null,null,null,null,null,null,null,null,null,null,null,null,null,null,null,null,null,null,"Pasze z zakupu\n(nazwa produktu, producent,\nnr partii, data przydatności)"]
[]
[]
[]
[]
[]
[null,null,null,"1.",null,"14 dni do 2 m-ca życia",null,null,null,null,null,null,null,null,null,null,null,null,null,null,null,null,null,null,null,"Stopniowo TMR",null,null,null,null,null,null,null,null,null,null,null,null,null,null,null,null,null,null,"Starter Preparat\nmlekozastępczy"]
[null,null,null,"2.",null,"2-6 mcy życia",null,null,null,null,null,null,null,null,null,null,null,null,null,null,null,null,null,null,null,"Suchy TMR",null,null,null,null,null,null,null,null,null,null,null,null,null,null,null,null,null,null,"Musli\nMieszanki paszowe\nKomponenty\nuzupełniające"]
[null,null,null,"3.",null,"6-12 mcy życia",null,null,null,null,null,null,null,null,null,null,null,null,null,null,null,null,null,null,null,"TMR o podwyższonej\nzawartości białka",null,null,null,null,null,null,null,null,null,null,null,null,null,null,null,null,null,null,"Mieszanki paszowe\nuzupełniające\nKoncentraty białkowe"]
[null,null,null,"4.",null,"12-24 mcy życia",null,null,null,null,null,null,null,null,null,null,null,null,null,null,null,null,null,null,null,"TMR\n(60% kiszonka z\nkukurydzy,\n30% sianokiszonka,\n10% pasza treściwa)",null,null,null,null,null,null,null,null,null,null,null,null,null,null,null,null,null,null,"Mieszanki paszowe\nuzupełniające\nKoncentraty białkowe"]

{"sheet":"Zlecenie_certyfikacji","index":7,"n_rows":120,"n_cols":69,"rows_kept":120,"cut":false,"hidden":false,"merged":[[57,3,58,63],[60,3,69,63],[37,67,38,67],[42,18,43,31],[94,3,95,42],[94,43,95,62],[78,5,82,30],[78,34,82,59],[83,5,83,30],[83,31,83,33],[83,34,83,59],[52,3,53,63],[55,3,55,63],[89,3,93,63],[70,3,75,63],[76,3,77,63],[37,68,38,68],[37,66,38,66],[39,3,40,63],[45,3,50,63],[18,3,19,63],[27,3,29,63],[30,3,31,63],[21,3,23,63],[24,3,25,63],[32,3,32,13],[32,15,32,25],[32,27,32,37],[32,39,32,63],[42,33,43,47],[42,48,43,63],[42,3,43,17],[2,29,3,30],[2,33,3,33],[7,3,13,63],[5,54,6,63],[2,19,3,20],[2,17,3,18],[2,31,3,32],[2,21,3,22],[2,23,3,24],[2,25,3,26],[2,27,3,28],[2,3,3,16],[2,34,3,63],[109,51,112,63],[119,3,120,63],[109,3,112,15],[109,19,112,31],[109,35,112,47],[104,51,107,63],[106,3,107,15],[108,3,108,15],[106,19,107,31],[108,19,108,31],[108,35,108,47],[108,51,108,63],[104,35,107,47],[100,3,102,63],[84,5,87,30],[96,43,96,62],[84,31,85,33],[84,34,87,59],[97,3,98,63],[33,39,35,63],[36,39,37,63],[33,3,35,13],[36,3,37,13],[33,15,35,25],[36,15,37,25],[33,27,35,37],[36,27,37,37]]}
[]
[]
[null,null,null,"Numer rejestracyjny klienta",null,null,null,null,null,null,null,null,null,null,null,null,null,null,null,null,null,null,null,null,null,null,null,null,null,null,null,null,null,"→","(Wypełnia TÜV Rheinland Polska)"]
[]
[]
[null,null,null,null,null,null,null,null,null,null,null,null,null,null,null,null,null,null,null,null,null,null,null,null,null,null,null,null,null,null,null,null,null,null,null,null,null,null,null,null,null,null,null,null,null,null,null,null,null,null,null,null,null,null,"Strona 1 z 1"]
[]
[null,null,null,"ZLECENIE CERTYFIKACJI"]
[]
[]
[]
[]
[]
[]
[]
[]
[]
[]
[null,null,null,"A. DANE IDENTYFIKACYJNE ZLECAJĄCEGO (dane do faktury)"]
[]
[]
[null,null,null,{"$f":"IF(Wniosek!$D$45=\"\",\"\",Wniosek!$D$45)","v":""}]
[]
[]
[null,null,null,"imię i nazwisko lub nazwa firmy"]
[]
[]
[null,null,null,{"$f":"CONCATENATE(\" \",\n  Wniosek!U65,\n  IF(Wniosek!AL65<>\"\",\" ul. \" & Wniosek!AL65,\"\"),\n  IF(Wniosek!BC65<>\"\",\" \"&Wniosek!BC65,\"\"),\n  IF(Wniosek!BH65<>\"\",\"/\" & Wniosek!BH65,\"\"),\n  \" \",Wniosek!BC58,\n  \" \",Wniosek!D65\n)","v":"   "}]
[]
[]
[null,null,null,"adres zameldowania"]
[]
[null,null,null,null,null,null,null,null,null,null,null,null,null,null,null,null,null,null,null,null,null,null,null,null,null,null,null,null,null,null,null,null,null,null,null,null,null,null,null,null,null,null,null,null,null,null,null,null,null,null,null,null,null,null,null,null,null,null,null,null,null,null,null,null,null,null,0,25,1350]
[null,null,null,{"$f":"CONCATENATE(Wniosek!AF110,Wniosek!AI110,Wniosek!AL110,Wniosek!AO110,Wniosek!AR110,Wniosek!AU110,Wniosek!AX110,Wniosek!BA110,Wniosek!BD110,Wniosek!BG110,Wniosek!BJ110)","v":""},null,null,null,null,null,null,null,null,null,null,null,{"$f":"CONCATENATE(Wniosek!AI114,Wniosek!AL114,Wniosek!AO114,Wniosek!AR114,Wniosek!AU114,Wniosek!AX114,Wniosek!BA114,Wniosek!BD114,Wniosek!BG114,Wniosek!BJ114)","v":""},null,null,null,null,null,null,null,null,null,null,null,{"$f":"CONCATENATE(Wniosek!AL106,Wniosek!AO106,Wniosek!AR106,Wniosek!AU106,Wniosek!AX106,Wniosek!BA106,Wniosek!BD106,Wniosek!BG106,Wniosek!BJ106)","v":""},null,null,null,null,null,null,null,null,null,null,null,{"$f":"CONCATENATE(Wniosek!AL142,\" \",Wniosek!AL143)","v":" "},null,null,null,null,null,null,null,null,null,null,null,null,null,null,null,null,null,null,null,null,null,null,null,null,null,null,26,50,1550]
[null,null,null,null,null,null,null,null,null,null,null,null,null,null,null,null,null,null,null,null,null,null,null,null,null,null,null,null,null,null,null,null,null,null,null,null,null,null,null,null,null,null,null,null,null,null,null,null,null,null,null,null,null,null,null,null,null,null,null,null,null,null,null,null,null,null,51,100,1750]
[null,null,null,null,null,null,null,null,null,null,null,null,null,null,null,null,null,null,null,null,null,null,null,null,null,null,null,null,null,null,null,null,null,null,null,null,null,null,null,null,null,null,null,null,null,null,null,null,null,null,null,null,null,null,null,null,null,null,null,null,null,null,null,null,null,null,101,200,2000]
[null,null,null,"PESEL",null,null,null,null,null,null,null,null,null,null,null,"NIP",null,null,null,null,null,null,null,null,null,null,null,"nr ARIMR",null,null,null,null,null,null,null,null,null,null,null,"telefon, e-mail",null,null,null,null,null,null,null,null,null,null,null,null,null,null,null,null,null,null,null,null,null,null,null,null,null,null,201,999,"odrębna kalkulacja"]
[]
[]
[null,null,null,"B. KALKULACJA KOSZTÓW"]
[]
[]
[null,null,null,"Koszt certyfikacji PLN (netto):",null,null,null,null,null,null,null,null,null,null,null,null,null,null,{"$f":"IF(AW43=0,\"\",VLOOKUP(AW43,$BO$33:$BQ$37,3,TRUE))","v":""},null,null,null,null,null,null,null,null,null,null,null,null,null,null,"Liczba sztuk bydła:",null,null,null,null,null,null,null,null,null,null,null,null,null,null,{"$f":"Wniosek!AL144","v":0}]
[]
[]
[null,null,null,"Koszt certyfikacji został wyliczony na podstawie liczby sztuk bydła podanych we Wniosku o certyfikację, zgodnie z Cennikiem QMP, wersja 0 z dnia 28.04.2025 r. Koszt certyfikacji może ulec zmianie w przypadku aktualizacji Wniosku o certyfikację lub ustaleń zawartych w protokole z kontroli, zgodnie z obowiązującym Cennikiem QMP."]
[]
[]
[]
[]
[]
[null,null,null,null,null,null,null,null,null,null,null,null,null,null,null,null,null,null,null,null,null,null,null,null,null,null,null,null,null,null,null,null,null,null,null,null,null,null,null,null,null,null,null,null,null,null,null,null,null,null,null,null,null,null,null,null,null,null,null,null,null,null,null,null,null,null,"Wniosek o certyfikację na zgodność z wymaganiami Systemu QMP – Standard QMP Bydło"]
[null,null,null,"C. ZAŁĄCZNIKI",null,null,null,null,null,null,null,null,null,null,null,null,null,null,null,null,null,null,null,null,null,null,null,null,null,null,null,null,null,null,null,null,null,null,null,null,null,null,null,null,null,null,null,null,null,null,null,null,null,null,null,null,null,null,null,null,null,null,null,null,null,null,"Wniosek o certyfikację na zgodność z wymaganiami Systemu QMP – Standard QMP Mięso"]
[null,null,null,null,null,null,null,null,null,null,null,null,null,null,null,null,null,null,null,null,null,null,null,null,null,null,null,null,null,null,null,null,null,null,null,null,null,null,null,null,null,null,null,null,null,null,null,null,null,null,null,null,null,null,null,null,null,null,null,null,null,null,null,null,null,null,"Wniosek o certyfikację na zgodność z wymaganiami Systemu QMP – Standard QMP Transport"]
[null,null,null,null,null,null,null,null,null,null,null,null,null,null,null,null,null,null,null,null,null,null,null,null,null,null,null,null,null,null,null,null,null,null,null,null,null,null,null,null,null,null,null,null,null,null,null,null,null,null,null,null,null,null,null,null,null,null,null,null,null,null,null,null,null,null,"Wniosek o certyfikację na zgodność z wymaganiami Systemu QMP – Standard QMP Pasze"]
[null,null,null,"Wniosek o certyfikację na zgodność z wymaganiami Systemu QMP – Standard QMP Bydło"]
[]
[null,null,null,"D. WARUNKI UMOWY I PODPIS ZLECAJĄCEGO"]
[]
[]
[null,null,null,"Podpisanie zlecenia certyfikacji jest równoznaczne z zaakceptowaniem warunków umowy określonych w Programie certyfikacji (PCQMP, MS-0052470), kosztów certyfikacji określonych w Cenniku QMP wersja 0_28.04.2025 oraz Ogólnych Warunków Transakcyjnych stosowanych przez TÜV Rheinland Polska Sp. z o. o. w wersji udostępnionej klientowi oraz w chwili podpisania zlecenia dostępnej na stronie www.tuv.com (nawigacja po stronie: Strona główna → Certyfikacja i audytowanie → Systemy i procesy → Żywność i higiena  → Bezpieczeństwo żywności → QMP)."]
[]
[]
[]
[]
[]
[]
[]
[]
[]
[null,null,null,"Oświadczam, iż przed podpisaniem zlecenia certyfikacji udostępniono mi aktualną wersję Programu Certyfikacji (PCQMP) oraz Ogólnych Warunków Transakcyjnych stosowanych przez TÜV Rheinland Polska Sp. z o. o., zapoznałem się z ich postanowieniami i akceptuje je w całości.  "]
[]
[]
[]
[]
[]
[null,null,null,"Posiadam niezbędną infrastrukturę techniczną do przeprowadzenia kontroli zdalnej (ICT)"]
[]
[null,null,null,null,null,{"$f":"IF(Wniosek!$G$326=\"\",\"\",Wniosek!$G$326)","v":""},null,null,null,null,null,null,null,null,null,null,null,null,null,null,null,null,null,null,null,null,null,null,null,null,null,null,null,null,{"$f":"IF(Wniosek!$AJ$326=\"\",\"\",Wniosek!$AJ$326)","v":""}]
[]
[]
[]
[]
[null,null,null,null,null,"….....................................................................",null,null,null,null,null,null,null,null,null,null,null,null,null,null,null,null,null,null,null,null,null,null,null,null,null,null,null,null,"…....................................................................."]
[null,null,null,null,null,"miejscowość, data",null,null,null,null,null,null,null,null,null,null,null,null,null,null,null,null,null,null,null,null,null,null,null,null,null,null,null,null,"Czytelny podpis zlecającego lub osoby upoważnionej odrębnym pełnomocnictwem"]
[]
[]
[]
[]
[null,null,null,"TÜV Rheinland Polska Sp. z o.o; ul. Wielicka 250; 30-663 Kraków, e-mail: qmp@tuv.com \nAleksandra Drabik (rejestracja zlecenia): tel. 697 113 492, Halszka Karasińska (kontrola i certyfikacja): tel. 603 787 374.\n     \n\n"]
[]
[]
[]
[]
[null,null,null,"\nOsoba pomagająca w wypełnieniu dokumentacji/doradca (imię i nazwisko, telefon): "]
[]
[null,null,null,null,null,null,null,null,null,null,null,null,null,null,null,null,null,null,null,null,null,null,null,null,null,null,null,null,null,null,null,null,null,null,null,null,null,null,null,null,null,null,null,"…................................................................"]
[null,null,null,"Wyrażam zgodę na udostępnianie doradcy informacji dotyczących procesu certyfikacji systemu QMP."]
[]
[]
[null,null,null,"POTWIERDZENIE ZŁOŻENIA ZLECENIA (Wypełnia TÜV Rheinland Polska)"]
[]
[]
[]
[null,null,null,null,null,null,null,null,null,null,null,null,null,null,null,null,null,null,null,null,null,null,null,null,null,null,null,null,null,null,null,null,null,null,null,"Anna Klimas",null,null,null,null,null,null,null,null,null,null,null,null,null,null,null,"\nKlaudia Dudek"]
[]
[]
[]
[null,null,null,"….......................................",null,null,null,null,null,null,null,null,null,null,null,null,null,null,null,"….......................................",null,null,null,null,null,null,null,null,null,null,null,null,null,null,null,"….......................................",null,null,null,null,null,null,null,null,null,null,null,null,null,null,null,"…......................................."]
[null,null,null,"Data zawarcia umowy",null,null,null,null,null,null,null,null,null,null,null,null,null,null,null,"Numer rejestracyjny zlecenia",null,null,null,null,null,null,null,null,null,null,null,null,null,null,null,"Podpis osoby odpowiedzialnej za umowę",null,null,null,null,null,null,null,null,null,null,null,null,null,null,null,"Podpis osoby odpowiedzialnej za umowę"]
[]
[]
[]
[]
[]
[]
[]
[]
[]
[null,null,null,"F01A do MS-0052675 Zlecenie certyfikacji, wersja 1 z 15.06.2025"]